Cogmind - Beta 10.1 @@@ ROGUE MODE // 2020.10.12 @ 03:15:00 Player: BlaaaaaaaastCannnooons Result: Establishing 0b11! Performance ------------- Evolutions (9) 4500 Regions Visited (35) 7000 Robots Destroyed (563) 2815 Value Destroyed (31360) 31360 Prototype IDs (156) 3120 Alien Tech Used (18) 3600 Bonus (57358) 57358 TOTAL SCORE: 109753 Bonus ------- High Alert Combat Kills 6778 Follower Combat Kills 1170 Network Hubs Disabled 400 Aligned with FarCom 300 Met Data Miner 300 Met Warlord at Base 500 MAIN.C Attacked Warlord 500 Warlord Defense Kill 334 Built Enhanced Grunts 300 Met R17 at Cetus 500 Found Hidden Lab 3000 Met R17 at Research 2000 Met Warlord at Research 2000 Destroyed MAIN.C Guards 500 Met MAIN.C 5000 Destroyed MAIN.C Shell 5000 Destroyed MAIN.C 10000 Met Warlord at Command 2000 Met Architect 300 Destroyed A8 300 Destroyed A6 400 Destroyed A5 500 Destroyed A4 700 Destroyed A3 800 Destroyed A2 1000 Destroyed Architect 15000 Win 3000 Friendly Fire -5224 Cogmind --------- Core Integrity 362/1600 Matter 925/925 Energy 604/620 System Corruption 0% Temperature Cool (8) Movement Treading (155) Ox1 Location 0b11 Command Parts ------- > --- POWER (3) -------- Graviton Reactor Zero-point Reactor Zero-point Reactor > --- PROPULSION (4) --- Experimental Biometal Heavy Treads Experimental Biometal Heavy Treads > --- UTILITY (15) ----- Desublimator High-capacity Storage Unit Experimental Matter Compressor Experimental Optical Array Experimental Targeting Computer Experimental Targeting Computer Experimental Target Analyzer Advanced Kinecellerator Advanced Weapon Cycler Experimental Phase Shifter Centrium Linked Plating Centrium Linked Plating Experimental Powered Armor Experimental Powered Armor AEGIS Remote Shield > --- WEAPON (4) ------- Blast Cannon Blast Cannon > --- INVENTORY (14) --- Advanced Energy Well (800) Experimental Matter Compressor (500) Experimental Core Analyzer Experimental Core Shielding Centrium Linked Plating Thief Drone Bay (1/3) Sigix Quantum Sheargun Sigix Quantum Sheargun Sigix Quantum Sheargun Graviton Cannon Omega Cannon Enhanced Gamma Bomb Array Peak State ------------ > --- POWER ------------ Zero-point Reactor Zero-point Reactor Zero-point Reactor > --- PROPULSION ------- Experimental Biometal Heavy Treads Enhanced Armored Heavy Treads > --- UTILITY ---------- Experimental Coolant Injector Large Storage Unit Large Storage Unit High-capacity Storage Unit High-capacity Storage Unit High-capacity Storage Unit Experimental Targeting Computer Experimental Target Analyzer Advanced Armor Integrity Analyzer Advanced Kinecellerator Experimental Phase Shifter Experimental Powered Armor Experimental Powered Armor Beam Splitter AEGIS Remote Shield > --- WEAPON ----------- Blast Cannon Sigix Broadsword > --- INVENTORY -------- Experimental Biometal Heavy Treads Improved Energy Well Advanced Energy Well Enhanced Optical Array Experimental Optical Array Experimental Core Analyzer Advanced Weapon Cycler Advanced Weapon Cycler Improved Weapon Shielding Improved Weapon Shielding Experimental Weapon Shielding Experimental Hardlight Generator AEGIS Remote Shield Phase Redirector Long-range Tractor Beam Thief Drone Bay Transdimensional Reconstructor Transdimensional Reconstructor Core Regenerator Integrity Redistributor Subatomic Replicator Terrabomb Matter Drive Stasis Generator Heavy Quantum Rifle Sigix Quantum Sheargun Sigix Quantum Sheargun Sigix Quantum Sheargun Sigix Quantum Sheargun Sigix Quantum Sheargun Heavy Disruptor Cannon Cooled Nova Cannon Graviton Cannon Omega Cannon Tiamat Missile Launcher Core Stripper [Rating: 255] Favorites ----------- Power Zero-point Reactor Engine Deuterium Engine Power Core Reinforced Fission Core Reactor Zero-point Reactor Propulsion Experimental Biometal Heavy Treads Treads Experimental Biometal Heavy Treads Leg Enhanced Flexi-carbon Leg Utility High-capacity Storage Unit Device Advanced Weapon Cycler Storage High-capacity Storage Unit Processor Experimental Targeting Computer Hackware Advanced Hacking Suite Protection Experimental Powered Armor Artifact Phase Redirector Weapon Flak Gun Energy Gun Sigix Quantum Sheargun Energy Cannon EMDS Ballistic Gun Flak Gun Ballistic Cannon Blast Cannon Launcher Grenade Launcher Impact Weapon Great Maul Slashing Weapon Sigix Broadsword Piercing Weapon Enhanced Force Lance Special Melee Weapon Advanced Datajack Build | -11 -10 -10 -9 -9 -9 -8 -8 -7 -7 -7 -7 -6 -6 -6 -6 -6 -6 -6 -6 -5 -5 -5 -5 -4 -4 -4 -4 -3 -3 -3 -2 -2 -1 -1 -1 ------- Run | Scr Mat Min Mat Min Exi Min Mat Fac Low Low Dat Pro Fac Was Fac Ext Cet Arc Hub Fac Upp Upp War Pro Fac Arm Lab Res Qua Sec Res Tes Acc Com Ac0 Slots Evolved 17 | . . . 2 . . . 2 2 . . . . 2 . . . . . . 2 . . . . 2 . . 2 . . 2 . 1 . . Power 1 | . . . . . . . . . . . . . . . . . . . . . . . . . 1 . . . . . . . . . . Propulsion 2 | . . . . . . . . . . . . . 1 . . . . . . 1 . . . . . . . . . . . . . . . Utility 12 | . . . 2 . . . 2 2 . . . . . . . . . . . 1 . . . . 1 . . 2 . . 1 . 1 . . Weapon 2 | . . . . . . . . . . . . . 1 . . . . . . . . . . . . . . . . . 1 . . . . Parts Attached 819 | 7 16 7 5 2 41 . 3 28 2 . 17 10 6 24 12 27 10 8 23 33 6 14 7 12 45 42 6 18 28 111 4 20 28 72 125 Power 35 | 1 1 1 . . 2 . . 1 . . 1 . . 3 . 1 1 . . 1 . . . . 1 . . 1 2 5 . . . 7 6 Engine 4 | 1 1 1 . . . . . . . . . . . . . 1 . . . . . . . . . . . . . . . . . . . Core 3 | . . . . . 1 . . 1 . . . . . 1 . . . . . . . . . . . . . . . . . . . . . Reactor 28 | . . . . . 1 . . . . . 1 . . 2 . . 1 . . 1 . . . . 1 . . 1 2 5 . . . 7 6 Propulsion 50 | 2 1 2 . . 6 . . 2 . . 2 1 1 2 1 2 1 . . 1 . . . . 1 2 . 4 4 2 . . . 10 3 Treads 48 | 2 1 2 . . 5 . . 2 . . 1 1 1 2 1 2 1 . . 1 . . . . 1 2 . 4 4 2 . . . 10 3 Leg 2 | . . . . . 1 . . . . . 1 . . . . . . . . . . . . . . . . . . . . . . . . Wheel . | . . . . . . . . . . . . . . . . . . . . . . . . . . . . . . . . . . . . Hover . | . . . . . . . . . . . . . . . . . . . . . . . . . . . . . . . . . . . . Flight . | . . . . . . . . . . . . . . . . . . . . . . . . . . . . . . . . . . . . Utility 465 | 2 8 2 2 2 25 . 3 17 2 . 7 3 2 15 3 11 5 2 13 17 5 12 3 10 22 30 3 10 18 74 3 9 19 34 72 Device 315 | 1 2 1 1 2 13 . . 8 2 . 2 1 2 11 2 6 1 1 5 8 4 12 1 5 17 21 3 5 14 68 3 8 17 22 46 Storage 56 | . 3 1 . . 7 . . 3 . . 2 1 . 2 1 . 1 1 1 2 . . . 4 2 7 . 3 2 2 . 1 2 2 6 Processor 14 | 1 . . . . . . . 1 . . . . . . . . . . . 2 . . . . 1 . . 1 . . . . . 6 2 Hackware 16 | . . . . . . . 3 1 . . . . . . . 2 . . 3 1 . . . 1 1 . . 1 . 2 . . . 1 . Protection 61 | . 3 . 1 . 5 . . 4 . . 3 1 . 2 . 3 3 . 4 4 1 . 2 . 1 2 . . 2 1 . . . 2 17 Artifact 3 | . . . . . . . . . . . . . . . . . . . . . . . . . . . . . . 1 . . . 1 1 Weapon 269 | 2 6 2 3 . 8 . . 8 . . 7 6 3 4 8 13 3 6 10 14 1 2 4 2 21 10 3 3 4 30 1 11 9 21 44 Energy Gun 42 | 1 1 . . . . . . . . . . . . . . . . . . . . . 1 1 1 . 1 . . 1 . 1 . 6 28 Energy Cannon 76 | . 3 . 2 . 1 . . . . . . 1 . . . . . . . 3 . 1 1 . 9 7 2 2 1 15 1 10 9 8 . Ballistic Gun 74 | 1 . 1 . . 3 . . 5 . . 5 1 3 4 8 9 2 4 9 5 . . . . . . . . . 14 . . . . . Ballistic Cannon 32 | . . . . . . . . . . . . . . . . . . . . . . . 1 1 11 1 . . . . . . . 5 13 Launcher 26 | . 2 1 . . 3 . . 2 . . . 3 . . . 2 . . 1 6 1 1 . . . 2 . . . . . . . 1 1 Special Weapon . | . . . . . . . . . . . . . . . . . . . . . . . . . . . . . . . . . . . . Impact Weapon 9 | . . . 1 . . . . 1 . . 1 1 . . . 2 1 1 . . . . . . . . . . 1 . . . . . . Slashing Weapon 8 | . . . . . 1 . . . . . 1 . . . . . . . . . . . 1 . . . . . 2 . . . . 1 2 Piercing Weapon 1 | . . . . . . . . . . . . . . . . . . . . . . . . . . . . 1 . . . . . . . Special Melee Weapon 1 | . . . . . . . . . . . . . . . . . . 1 . . . . . . . . . . . . . . . . . Unidentified Prototypes 65 | . . 1 . 1 7 . . . . . 3 . . . . . 3 . 3 1 . . 2 . 3 1 4 . 6 8 . 2 . 15 5 Parts Lost 32 | . 1 1 . . . . . . . . 1 1 . 1 . 1 1 . . 2 . 3 . . 1 1 . 1 . 2 1 . 1 3 10 Power 5 | . . . . . . . . . . . . . . 1 . . . . . 1 . . . . . . . . . . . . . 1 2 Propulsion 4 | . . . . . . . . . . . . 1 . . . . . . . . . . . . . 1 . . . . . . 1 . 1 Utility 14 | . . 1 . . . . . . . . 1 . . . . 1 1 . . . . . . . 1 . . 1 . 2 . . . 1 5 Weapon 9 | . 1 . . . . . . . . . . . . . . . . . . 1 . 3 . . . . . . . . 1 . . 1 2 Highest Loss Streak 2 | . 1 1 . . . . . . . . 1 1 . 1 . 1 1 . . 1 . 1 . . 1 1 . 1 . 1 1 . 1 2 2 Average Slot Usage (%) 82 | . 99 99 100 100 85 88 88 88 84 84 81 84 93 75 86 85 85 86 82 78 75 79 72 69 65 78 77 83 85 76 80 75 74 82 83 Engine 1 | . 14 13 11 11 7 . . . . . . . . . . 4 1 . . . . . . . . . . . . . . . . . . Core 1 | . . . . . 3 11 9 7 7 7 3 . . . . . . . . . . . . . . . . . . . . . . . . Reactor 5 | . . . . . . . . . . . 3 7 6 5 6 1 4 6 6 5 5 5 5 5 5 5 5 7 9 9 12 12 11 10 9 Treads 13 | . 28 28 22 22 22 22 18 15 15 15 14 14 20 13 13 13 13 13 13 11 11 11 11 11 10 12 15 15 13 8 8 8 6 6 7 Device 12 | . 14 6 11 11 11 11 6 4 7 7 8 13 16 8 20 15 6 6 1 7 16 11 13 8 10 18 17 19 17 12 12 9 10 15 19 Storage 16 | . 10 21 22 22 15 22 18 15 15 15 16 16 16 13 13 13 16 19 20 23 23 23 20 17 15 18 15 13 19 18 16 18 19 19 10 Processor 6 | . . . . . . . . 2 7 7 7 7 6 6 6 6 6 6 6 7 11 11 11 11 5 5 5 7 9 8 8 8 7 11 14 Hackware 3 | . . . . . . . 19 15 . . . . . . . 4 3 . 11 . . . . . 5 5 5 7 4 4 9 8 7 . . Protection 5 | . 1 . 11 11 3 . . 9 15 15 10 7 6 5 6 6 12 13 3 5 . 5 5 6 7 3 5 4 2 3 4 4 3 6 11 Energy Cannon 2 | . 13 14 10 11 3 . . . . . . . . . . . . . . 2 5 3 2 . 1 6 9 5 4 1 7 3 1 . . Ballistic Gun 6 | . 5 4 . . 8 11 9 14 15 15 12 11 20 20 20 19 11 16 19 7 . . . . . . . . . 2 . . . . . Launcher 1 | . 8 9 11 11 9 11 9 . . . . 1 . . . . 5 . . 2 . 3 . . . . . . . . . . . . . Slashing Weapon 1 | . . . . . . . . . . . 1 . . . . . . . . . . . . . . . . . 2 4 4 4 3 2 . Naked Turns . | . . . . . . . . . . . . . . . . . . . . . . . . . . . . . . . . . . . . Heaviest Build 287 | 10 47 79 85 87 176 141 141 186 158 155 193 169 157 193 154 159 168 191 227 235 155 158 163 152 193 187 187 194 207 223 235 235 247 287 286 Greatest Support 180 | 40 40 40 40 40 40 40 40 42 40 40 40 40 63 93 93 100 110 110 110 160 160 160 160 160 160 155 129 145 160 170 170 170 170 180 170 Greatest Overweight (x) 64 | . 1 1 2 2 4 3 3 4 3 3 4 4 2 64 1 1 1 62 2 1 . . 1 . 1 1 1 2 1 1 1 1 2 3 1 Average Overweight (x) 1 | . . 1 2 2 2 3 3 3 3 3 3 3 2 19 1 1 1 3 1 . . . . . . . 1 1 1 1 1 1 1 1 . Largest Inventory Capacity 52 | 4 12 20 20 20 44 32 32 52 32 32 40 32 32 40 52 32 32 40 48 48 28 28 28 28 28 28 28 28 34 36 36 42 42 48 40 Average Capacity 31 | 4 8 16 20 20 29 32 32 32 32 32 33 32 32 32 32 32 32 39 40 38 28 28 28 28 28 28 28 28 30 34 36 39 42 42 25 Most Carried 48 | 4 12 20 19 20 35 31 31 32 31 31 33 32 31 40 32 32 32 40 47 47 28 28 28 28 28 28 28 28 33 36 33 42 42 48 40 Average Carried 29 | 1 8 13 18 19 23 31 29 30 31 31 29 31 29 32 31 31 30 38 38 34 26 27 26 27 24 26 26 27 28 33 31 36 40 41 22 Final Capacity 48 | 4 12 20 20 20 32 32 32 32 32 32 32 32 32 32 32 32 32 40 48 28 28 28 28 28 28 28 28 28 34 36 36 42 42 40 14 Final Carried 47 | 4 12 19 19 20 31 31 30 31 31 31 31 31 31 32 31 32 32 39 47 28 26 24 28 28 23 27 28 28 32 33 33 42 41 35 13 Class Distribution -------------------- 36% | Hauler-Mutant 24% | Scavenger-Mutant 16% | Generator-Mutant 7% | Hauler-Tank 5% | Hauler-Gunner 4% | Mutant Dominant Class ---------------- Mutant | -10/Materials Mutant | -10/Mines Hauler-Mutant | -9/Materials Hauler-Mutant | -9/Mines Hauler-Mutant | -9/Exiles Hauler-Mutant | -8/Mines Hauler-Mutant | -8/Materials Hauler-Mutant | -7/Factory Hauler-Mutant | -7/Lower Caves Hauler-Mutant | -7/Lower Caves Hauler-Mutant | -7/Data Miner Hauler-Mutant | -6/Proximity Caves Hauler-Tank | -6/Factory Hauler-Gunner | -6/Waste Hauler-Tank | -6/Factory Hauler-Tank | -6/Extension Scavenger-Mutant | -6/Cetus Hauler-Mutant | -6/Archives Scavenger-Gunner | -6/Hub_04(d) Hauler-Tank | -5/Factory Scavenger-Mutant | -5/Upper Caves Scavenger-Skirmisher | -5/Upper Caves Scavenger-Mutant | -5/Warlord Scavenger-Mutant | -4/Proximity Caves Scavenger-Mutant | -4/Factory Hauler-Mutant | -4/Armory Hauler-Mutant | -4/Lab Generator-Mutant | -3/Research Generator-Mutant | -3/Quarantine Generator-Mutant | -3/Section 7 Generator-Mutant | -2/Research Generator-Mutant | -2/Testing Generator-Mutant | -1/Access Scavenger-Mutant | -1/Command Scavenger-Mutant | -1/Access_0 Resources | -11 -10 -10 -9 -9 -9 -8 -8 -7 -7 -7 -7 -6 -6 -6 -6 -6 -6 -6 -6 -5 -5 -5 -5 -4 -4 -4 -4 -3 -3 -3 -2 -2 -1 -1 -1 ----------- Run | Scr Mat Min Mat Min Exi Min Mat Fac Low Low Dat Pro Fac Was Fac Ext Cet Arc Hub Fac Upp Upp War Pro Fac Arm Lab Res Qua Sec Res Tes Acc Com Ac0 Matter Collected 21928 | 318 282 52 35 28 1062 10 14 1150 207 48 323 313 . 1105 610 1129 164 460 726 960 35 355 190 112 1300 1424 . 574 307 2896 60 123 307 2366 2883 Remotely 4384 | . . . . . . . . . . . . 109 . 454 . 265 . . . . . . . . 458 1173 . 222 . 652 . . . . 1051 Salvage Created 32942 | 156 605 49 91 111 250 23 102 1245 125 125 412 570 . 1749 948 1779 401 335 1500 2221 . 1041 205 661 1348 1813 . 875 627 6266 182 957 1377 2356 2437 Parts 1517 | 10 31 9 8 7 25 10 9 78 10 4 28 30 . 48 34 94 14 21 73 105 . 40 3 27 59 71 . 23 29 327 9 39 60 64 118 Haulers Intercepted 13 | . 2 . . . . . 1 3 . . . . . . . 2 . . 2 . . . . . . . . 1 . 1 . 1 . . . Recyclers Shooed 10 | . 1 . . 1 . . . . . . . . . . 2 . . . . 5 . . . . 1 . . . . . . . . . . Parts Field Recycled . | . . . . . . . . . . . . . . . . . . . . . . . . . . . . . . . . . . . . Retrieved Matter . | . . . . . . . . . . . . . . . . . . . . . . . . . . . . . . . . . . . . Parts Self-Destructed 144 | . . . . . . . . . 10 4 . 19 . . . . . . . . . 8 97 6 . . . . . . . . . . . Prevented 62 | . . . . . . . . . . . . 12 . . . . . . . . . 22 9 19 . . . . . . . . . . . Kills | -11 -10 -10 -9 -9 -9 -8 -8 -7 -7 -7 -7 -6 -6 -6 -6 -6 -6 -6 -6 -5 -5 -5 -5 -4 -4 -4 -4 -3 -3 -3 -2 -2 -1 -1 -1 ------- Run | Scr Mat Min Mat Min Exi Min Mat Fac Low Low Dat Pro Fac Was Fac Ext Cet Arc Hub Fac Upp Upp War Pro Fac Arm Lab Res Qua Sec Res Tes Acc Com Ac0 Combat Hostiles Destroyed 454 | . 15 5 4 5 4 4 6 15 2 2 4 15 . 6 4 24 5 . 18 38 . 24 3 15 22 34 . 11 6 73 1 9 17 21 42 Melee 8 | . 1 . . . 1 . 1 . . . . . . . . . . . . . . . . . . . . . . 5 . . . . . Guns 164 | . 1 . . . . . 1 15 2 2 4 3 . 6 4 24 . . 16 10 . . . 9 . . . . . 51 . . . 2 14 Cannons 115 | . 6 . 1 1 . . . . . . . 1 . . . . . . . 10 . 2 2 . 9 9 . 6 5 13 . 7 9 13 21 AOE 100 | . 7 5 3 4 3 4 4 . . . . 9 . . . . 3 . 2 15 . 16 . 2 9 9 . . . . . 1 . 2 2 Classes Destroyed 26 | 2 5 . . 1 3 . . 3 . . . . . 1 . 3 . . 1 . . . . . . 1 . . 1 3 . . . 2 . Worker 16 | . 1 . . . . . 1 2 . . . . . . 1 . . . . 4 . . . . 3 . . 1 . 1 . . . 2 . Builder 12 | . . . . . . . . . . . . . . . . 2 . . . 2 . . . . 2 . . 1 . 5 . . . . . Tunneler 7 | 4 . 1 . . . . . . . . . . . . 1 . . . . . . . . . 1 . . . . . . . . . . Hauler 13 | . 2 . . . . . 1 3 . . . . . . . 2 . . 2 . . . . . . . . 1 . 1 . 1 . . . Recycler 15 | 1 2 . . . . . . 1 . . . . . . 4 . . . . 2 . . . . 4 . . . . 1 . . . . . Mechanic 1 | . . . . . . . . . . . . . . . . . . . . . . . . . . . . . . 1 . . . . . Operator 13 | . . . . . . . . 1 . . . . . . . 2 . 8 1 . . . . . . . . . . 1 . . . . . Turret 1 | . . . . . 1 . . . . . . . . . . . . . . . . . . . . . . . . . . . . . . Watcher 18 | . 1 . 1 . . . . . . . . . . . 2 1 1 . 1 1 . . . . . 1 . 1 . 2 2 3 1 . . Swarmer 104 | . 3 5 3 3 . 4 4 . . . . 6 . . . 4 3 . . 15 . 15 . 10 9 9 . 1 . 8 . . . 2 . Saboteur 1 | . . . . . . . . . . . . . . . . . . . . . . . . . . . . . . 1 . . . . . Grunt 135 | . 12 . 1 1 . . 2 6 . . . 5 . . 2 14 . . 9 13 . 8 3 4 . 9 . 8 1 28 . 5 4 . . Brawler 4 | . . . . 1 . . . . . . . . . . . 1 . . . . . . . . . . . . . 1 . . 1 . . Duelist 9 | . . . . . . . . . . . . . . . . 1 . . . 2 . . . 1 . 3 . . . 2 . . . . . Protector 2 | . . . . . . . . . . . . . . . . . . . . . . . . . . 2 . . . . . . . . . Sentry 37 | . . . . . . . . 7 1 1 . 1 . . 2 2 . . 5 2 . 1 . . 4 1 . . . 7 1 . . 2 . Demolisher 1 | . . . . . . . . . . . . . . . . . . . . . . . . . . . . . . . . . . 1 . Hunter 32 | . . . . . . . . . . . . . . . . . . . 1 5 . . . . 2 6 . 2 . 4 . . 4 8 . Programmer 54 | . . . . . . . . 2 1 1 . 3 . . . . . . . 1 . . . . 7 4 . . 4 17 . 4 8 2 . Behemoth 3 | . . . . . . . . . . . . . . . . 2 . . . . . . . . . . . . . . . . . 1 . Compactor 6 | . . . . . . . . . . . . . . 6 . . . . . . . . . . . . . . . . . . . . . Cetus Guard 2 | . . . . . . . . . . . . . . . . . 2 . . . . . . . . . . . . . . . . . . S7 Guard 3 | . . . . . . . . . . . . . . . . . . . . . . . . . . . . . . 3 . . . . . M Guard 2 | . . . . . . . . . . . . . . . . . . . . . . . . . . . . . . . . . . 2 . Enhanced Grunt 30 | . . . . . . . . . . . 4 . . . . . . . . . . . . . . . . . . . . . . . 26 Enhanced Sentry 1 | . . . . . . . . . . . . . . . . . . . . . . . . . . . . . . . . . . . 1 Enhanced Hunter 8 | . . . . . . . . . . . . . . . . . . . . . . . . . . . . . . . . . . . 8 Lightning 3 | . . . . . . . . . . . . . . . . . . . 3 . . . . . . . . . . . . . . . . Combat Programmer 1 | . . . . . . . . . . . . . . . . . . . . . . . . . . . . . . . . . . 1 . Executioner 2 | . . . . . . . . . . . . . . . . . . . . . . . . . . . . . . 2 . . . . . Fortress 1 | . . . . . . . . . . . . . . . . . . . . . . . . . . . . . 1 . . . . . . Zionite 8 | . . . . . 8 . . . . . . . . . . . . . . . . . . . . . . . . . . . . . . Assembled 3 | . . . . . 3 . . . . . . . . . . . . . . . . . . . . . . . . . . . . . . Thug 1 | . . . . . . . . . . . . . . . . . . 1 . . . . . . . . . . . . . . . . . Butcher 1 | . . . . . . . . . . . . . . . . . 1 . . . . . . . . . . . . . . . . . . Fireman 1 | . . . . . . . . . . . . . . . . . . . . . . . . . . . . . . . . . . 1 . Best Kill Streak 12 | 5 10 3 3 3 4 4 8 5 1 1 4 6 . 1 4 5 3 3 9 12 . 5 3 5 12 7 . 5 2 11 1 5 4 4 8 Combat Bots Only 11 | . 5 3 3 3 3 4 6 3 1 1 4 6 . 1 1 4 3 . 7 8 . 5 3 5 7 7 . 5 2 11 1 4 4 4 8 Max Kills in Single Turn 7 | 1 2 3 2 2 2 2 3 2 1 1 1 3 . 1 2 2 3 1 2 3 . 4 2 2 7 3 . 2 1 2 1 1 1 1 1 Gunslinging 1 | . . . . . . . . . . . . . . . . 1 . . . 1 . . . . . . . . . . . . . . . Exploded 5 | . 2 3 2 2 2 2 2 . . . . 3 . . . . 3 . 1 2 . 4 . 2 5 3 . . . . . 1 . 1 1 Melee 1 | . 1 . . . 1 . 1 . . . . . . . . . . . . . . . . . . . . . . 1 . . . . . Uniques/NPCs Destroyed 14 | . . . . . 4 . . . . . . . . . . . 1 . . . . . . . . . . . . . . . . 2 7 8R-AWN (-9/Exiles) EX-BIN (-9/Exiles) EX-DEC (-9/Exiles) EX-HEX (-9/Exiles) A7 (-6/Cetus) MAIN.C Shell (-1/Command) MAIN.C (-1/Command) A8 (-1/Access_0) A6 (-1/Access_0) A5 (-1/Access_0) A4 (-1/Access_0) A2 (-1/Access_0) A3 (-1/Access_0) Architect (-1/Access_0) Combat | -11 -10 -10 -9 -9 -9 -8 -8 -7 -7 -7 -7 -6 -6 -6 -6 -6 -6 -6 -6 -5 -5 -5 -5 -4 -4 -4 -4 -3 -3 -3 -2 -2 -1 -1 -1 -------- Run | Scr Mat Min Mat Min Exi Min Mat Fac Low Low Dat Pro Fac Was Fac Ext Cet Arc Hub Fac Upp Upp War Pro Fac Arm Lab Res Qua Sec Res Tes Acc Com Ac0 Damage Taken 31036 | . 441 53 55 29 116 43 94 838 202 187 232 529 . 32 200 883 217 . 952 1743 . 982 . 335 1377 689 . 351 337 4000 91 545 1269 3172 11042 Core 2245 | . 50 . . 9 15 . 15 99 17 22 . 44 . . 8 118 . . 75 163 . 151 . 19 166 63 . 11 3 150 . 62 53 173 759 Absorbed by Shields 17666 | . 152 22 24 11 45 16 40 72 . . . 192 . . 79 275 48 . . . . . . 193 511 658 . 345 54 3243 87 . 488 1523 9588 Reduced by Siege Mode 1079 | . . . . . . . . . . . . . . . . 58 . . 47 41 . 18 . . 10 32 . . 2 160 . 7 27 123 554 Redirected to Core 79 | . . . . . . . . . . . . . . . . . . . . . . . . . . . . . . . . . . . 79 Core Remaining (%) 79 | 100 . 80 . . . 94 97 . . . . 74 . . . . . . 76 . . . . 66 . . 80 . . 87 . 95 . . 22 Volleys Fired 1887 | 18 47 2 8 3 75 2 7 61 8 4 9 31 . 28 16 56 12 25 42 67 . 25 12 2 59 85 4 45 17 388 21 58 74 154 422 Largest 4 | 1 2 1 1 1 2 1 2 2 2 2 2 2 . 3 3 3 2 3 3 3 . 2 1 1 1 1 1 2 1 1 1 1 1 4 4 Hottest 400 | 20 90 30 56 56 60 30 53 60 60 60 60 64 . 88 88 88 63 84 105 109 . 116 70 90 90 120 120 190 120 120 120 150 110 400 400 Shots Fired 2866 | 18 55 2 8 3 77 2 10 120 16 8 18 45 . 85 48 166 14 75 105 99 . 26 12 43 61 84 4 47 17 388 21 58 74 232 825 Gun 1787 | 18 8 . . . 36 . 3 119 16 8 18 25 . 85 48 165 6 75 100 45 . . . 41 2 . . . . 290 . . . 136 543 Cannon 938 | . 31 . 6 1 16 . . . . . . 11 . . . . . . . 37 . 6 12 2 59 79 4 47 17 98 21 58 74 88 271 Launcher 141 | . 16 2 2 2 25 2 7 1 . . . 9 . . . 1 8 . 5 17 . 20 . . . 5 . . . . . . . 8 11 Special . | . . . . . . . . . . . . . . . . . . . . . . . . . . . . . . . . . . . . Kinetic 1376 | 18 8 . . . 36 . 3 119 16 8 18 25 . 85 48 165 6 75 100 45 . . . 2 33 7 . . . 258 . . . 30 271 Thermal 259 | . 31 . . . . . . . . . . . . . . . . . . . . . . . . 18 4 14 16 72 15 30 44 15 . Explosive 78 | . 16 2 2 2 25 2 7 1 . . . 6 . . . . . . . 2 . . . . . 5 . . . . . . . 8 . Electromagnetic 448 | . . . 6 1 16 . . . . . . 14 . . . 1 8 . 5 52 . 26 12 41 28 54 . 33 1 26 6 28 30 43 17 Slashing 705 | . . . . . . . . . . . . . . . . . . . . . . . . . . . . . . 32 . . . 136 537 Robot Hit Streak 59 | 9 16 . 7 10 12 . 6 12 19 4 5 8 . 19 23 34 33 10 53 14 . 8 . 15 22 10 . 11 9 44 19 14 23 59 51 Robot Miss Streak 13 | 1 3 . . . 2 . . 2 2 2 2 6 . 7 5 6 7 13 6 3 . 1 . 4 1 1 . 1 1 3 1 2 1 4 10 Penetration Max 2 | . . . . . . . . 2 . . . . . 1 2 2 . . 1 1 . . 1 . . 1 . 1 . 2 . . . 1 1 Secondary Targets 20 | . . . . . . . . 2 . . . . . . . 4 . . 3 5 . . . . . . . . . . . . . . 6 Max Gunslinging Chain 2 | . . . . . . . . 1 . . . . . . . 1 . . 1 2 . . . . . . . . . . . . . . 1 Capacitor 242 | . . . . . . . . . . . . . . . . . . . . . . . . . . . . . . 48 12 58 74 50 . Autonomous 43 | . . . . . . . . . . . . . . . . . . . . . . . . 41 2 . . . . . . . . . . Shots Hit Robots 2283 | 15 39 . 6 3 45 . 5 73 13 5 10 37 . 64 35 141 26 73 77 71 . 16 . 35 42 55 . 20 17 331 5 28 61 214 721 Core Hits 1705 | 6 26 5 6 6 51 4 11 31 4 2 7 40 . 42 63 181 28 80 70 76 . 27 2 31 34 38 . 12 8 144 3 14 18 100 535 Critical Hits 477 | . . . 1 . . . . 38 8 4 5 . . 22 4 28 . . 14 14 . 2 3 . 4 6 . 10 1 148 . 1 . 9 155 Critical Kills 130 | . . . . . . . . 13 2 2 4 . . 4 3 3 . . 9 7 . 2 1 . . 2 . 6 1 53 . . . 2 16 Critical Parts Destroyed 234 | . . . 1 . . . . 22 3 2 1 . . 3 1 15 . . 5 5 . . 2 . 3 4 . 4 . 89 . 1 . 5 68 Melee Attacks 217 | . . . 1 . 4 . . 5 . . 8 1 . . . 12 16 3 . . . . 1 . . . . . 13 107 2 18 8 18 . Kinetic 2 | . . . . . . . . . . . . . . . . . . . . . . . . . . . . . 2 . . . . . . Impact 41 | . . . 1 . . . . 5 . . 4 1 . . . 12 16 2 . . . . . . . . . . . . . . . . . Slashing 170 | . . . . . 4 . . . . . 4 . . . . . . . . . . . 1 . . . . . 8 107 2 18 8 18 . Piercing 3 | . . . . . . . . . . . . . . . . . . . . . . . . . . . . . 3 . . . . . . Sneak Attacks 28 | . . . . . . . . . . . 1 . . . . . 16 3 . . . . . . . . . . . 5 . . 1 2 . Combat Hostiles . | . . . . . . . . . . . . . . . . . . . . . . . . . . . . . . . . . . . . Follow-up Attacks . | . . . . . . . . . . . . . . . . . . . . . . . . . . . . . . . . . . . . Damage Inflicted 102675 | 195 1421 239 325 281 1736 165 357 1687 311 122 263 1625 . 1627 1080 3416 1915 1328 1868 4536 34 1933 309 1124 4336 4223 . 1653 805 14231 236 1663 2905 10048 34678 Guns 37121 | 195 89 . . . 356 . 48 1564 272 122 124 344 . 1627 1014 3258 121 1135 1439 1017 . . . 1025 25 . . . . 6718 . . . 4178 12450 Cannons 38086 | . 473 . 169 22 19 . . . . . . 160 . . . . . . . 1427 . 231 309 . 2809 3170 . 1611 676 1667 236 1401 2685 3673 17348 Explosions 18154 | . 839 227 132 244 901 165 290 . . . . 1121 . . . . 853 . 404 2060 . 1702 . 99 1484 1009 . . . 46 . 202 . 1684 4692 Melee 8029 | . . . . . 64 . . . . . 139 . . . . . 941 183 . . . . . . . . . . 129 5800 . 60 220 493 . Ramming 1285 | . 20 12 24 15 396 . 19 123 39 . . . . . 66 158 . 10 25 32 34 . . . 18 44 . 42 . . . . . 20 188 Kinetic 44311 | 195 89 . . . 356 . 48 1564 272 122 124 344 . 1627 1014 3258 121 1135 1439 1017 . . . . 1838 533 . . 57 5261 . . . 2652 21245 Thermal 7407 | . 528 . . . . . . . . . . 160 . . . . 203 . . 962 . 205 . 99 . 103 . . 676 1249 . 570 1654 798 200 Explosive 6748 | . 784 227 132 244 901 165 290 . . . . 554 . . . . . . . . . . . . 1484 1009 . . . . . . . 958 . Electromagnetic 16967 | . . . 169 22 19 . . . . . . 567 . . . . 650 . 404 2525 . 1728 309 1025 996 2534 . 1611 . 464 236 1033 1031 949 695 Impact 1124 | . . . . . . . . . . . . . . . . . 941 183 . . . . . . . . . . . . . . . . . Slashing 24833 | . . . . . 64 . . . . . 139 . . . . . . . . . . . . . . . . . 72 7257 . 60 220 4671 12350 Piercing . | . . . . . . . . . . . . . . . . . . . . . . . . . . . . . . . . . . . . Highest Corruption 31 | . . . . . . . 1 . 1 . . 2 . 31 . 2 . . . 2 2 . 2 . 2 3 3 . 1 5 . . . . . Average Corruption 6 | . . . . . . . 1 . 1 . . 1 . 14 . 1 . . . 1 1 . 1 . 1 2 1 . 1 2 . . . . . Corruption Purged 65 | . . . . . . . . . 1 . . . . 42 . 2 . . . . 2 . . . 3 3 3 . 1 8 . . . . . Effects 162 | . . . . . . . 2 . 2 . . 5 . 106 . . . . . . . . . . 2 12 1 . . 32 . . . . . Message Errors 28 | . . . . . . . 1 . . . . . . 18 . . . . . . . . . . . 4 . . . 5 . . . . . Matter Fused 29 | . . . . . . . . . . . . . . 22 . . . . . . . . . . . 1 . . . 6 . . . . . Heat Flow Errors 17 | . . . . . . . . . . . . 1 . 11 . . . . . . . . . . . 1 . . . 4 . . . . . Energy Discharges 20 | . . . . . . . . . 1 . . 1 . 11 . . . . . . . . . . 1 . . . . 6 . . . . . Parts Rejected 1 | . . . . . . . . . . . . . . . . . . . . . . . . . . . . . . 1 . . . . . Data Loss (minor) 21 | . . . . . . . 1 . 1 . . 1 . 13 . . . . . . . . . . . 2 1 . . 2 . . . . . Data Loss (major) 8 | . . . . . . . . . . . . . . 8 . . . . . . . . . . . . . . . . . . . . . Misfires 5 | . . . . . . . . . . . . . . 5 . . . . . . . . . . . . . . . . . . . . . Misdirections 3 | . . . . . . . . . . . . . . 3 . . . . . . . . . . . . . . . . . . . . . Targeting Errors 25 | . . . . . . . . . . . . 2 . 11 . . . . . . . . . . 1 3 . . . 8 . . . . . Weapon Failures 5 | . . . . . . . . . . . . . . 4 . . . . . . . . . . . 1 . . . . . . . . . Overload Shots 1 | . . . . . . . . . . . . . . . . . . . . . . . . . . . . . . . . 1 . . . Overflow Damage 2274 | . 33 . 14 . . . . 22 35 . 79 . . . . 15 227 71 . 125 10 73 . . 241 230 . 41 58 352 . 125 350 48 125 Projectiles 906 | . . . 14 . . . . . . . . . . . . . . . . . . . . . 237 122 . 41 40 20 . 104 170 48 110 Explosions 364 | . 33 . . . . . . . . . . . . . . . 6 . . 125 . 73 . . 4 88 . . . . . 21 . . 14 Melee 1004 | . . . . . . . . 22 35 . 79 . . . . 15 221 71 . . 10 . . . . 20 . . 18 332 . . 180 . 1 Knockbacks 171 | . . . . . 8 . . 1 1 . . . . . . 1 6 1 . 2 . . . . 12 4 . 1 . . . . . 5 129 Impact 25 | . . . . . 8 . . 1 1 . . . . . . 1 5 1 . 2 . . . . . 1 . 1 . . . . . . 4 Kinetic 143 | . . . . . . . . . . . . . . . . . . . . . . . . . 11 2 . . . . . . . 5 125 Secondary 3 | . . . . . . . . . . . . . . . . . 1 . . . . . . . 1 1 . . . . . . . . . Self-Inflicted Damage 1005 | . 169 40 . 21 1 43 34 18 . . . 34 . . . . . . 9 112 . 27 . . 206 . . . . 84 . . . . 207 Shots 45 | . 3 2 . 1 1 2 3 1 . . . 1 . . . . . . 2 4 . 3 . . 3 . . . . 1 . . . . 18 Rammed 138 | . 10 2 3 1 69 . 1 10 1 . . . . . 4 5 . 1 3 2 2 . . . 4 1 . 3 . . . . . 1 15 Targets Rammed 143 | . 11 3 3 1 70 . 2 11 1 . . . . . 4 5 . 1 3 2 2 . . . 4 1 . 3 . . . . . 1 15 Kicked . | . . . . . . . . . . . . . . . . . . . . . . . . . . . . . . . . . . . . Crushed 5 | . 1 1 . . 1 . 1 1 . . . . . . . . . . . . . . . . . . . . . . . . . . . Highest Temperature 440 | . 234 5 76 18 192 . 35 124 166 106 124 194 . 260 156 184 38 197 272 295 . 107 208 100 234 283 138 156 180 407 54 . 38 198 440 Average Temperature 79 | . 67 3 33 9 51 . 14 29 70 44 57 55 . 87 57 75 16 87 95 103 . 42 98 48 84 96 60 44 81 78 25 . 25 110 118 Received Heat Transfer 3069 | . 150 . 4 4 15 . 36 284 48 54 30 102 . . 68 215 30 . 336 240 . 195 . 14 123 88 . 43 27 344 4 99 81 56 379 Effects 8 | . . . . . . . . . . . . . . 1 . . . . . 1 . . . . . 3 . . . . . . . . 3 Shutdowns 1 | . . . . . . . . . . . . . . . . . . . . . . . . . . . . . . . . . . . 1 Energy Bleed 2 | . . . . . . . . . . . . . . . . . . . . 1 . . . . . . . . . . . . . . 1 Interference 4 | . . . . . . . . . . . . . . 1 . . . . . . . . . . . 3 . . . . . . . . . Matter Decay 1 | . . . . . . . . . . . . . . . . . . . . . . . . . . . . . . . . . . . 1 Siege Activations 117 | . . . . . . . . . . . . . . . 5 12 . . 6 6 . 3 . . 6 6 . 1 4 25 . 4 6 8 25 Total Turns 2473 | . . . . . . . . . . . . . . . 23 133 . . 134 37 . 22 . . 73 70 . 18 62 686 . 293 32 354 536 Longest Duration 248 | . . . . . . . . . . . . . . . 8 26 . . 52 9 . 9 . . 54 15 . 18 29 94 . 248 9 159 77 Robots Corrupted 71 | . . . . . . . . . . . . 2 . . . . 2 . . 4 . 6 1 4 4 16 . 6 . 4 1 4 8 4 5 Combat Hostiles 65 | . . . . . . . . . . . . 2 . . . . 2 . . 3 . 6 1 4 4 16 . 5 . 4 1 1 7 4 5 Parts Fried 182 | . . . 1 . . . . 2 . . . 1 . . . . 3 . 2 18 . 16 4 9 13 37 . 11 . 4 6 12 13 9 21 Impact Corruptions 20 | . . . . . 1 . . 1 3 . . . . . . 1 5 4 . . 2 . . . 1 1 . . . . . . . . 1 Robots Melted 1 | . . . . . . . . . . . . . . . . . . . . . . . . . . . . . . . . . 1 . . Combat Hostiles 1 | . . . . . . . . . . . . . . . . . . . . . . . . . . . . . . . . . 1 . . Parts Melted 22 | . 1 . . . . . . . . . . . . . . . . . . . . 1 . . . 1 . . . 2 . 1 8 2 6 Heat Transferred 6502 | . 1049 . . . . . . . . . . 150 . . . . 150 . . 901 . 200 . 100 . 74 . . 518 975 . 359 1221 581 224 Parts Sabotaged 2 | . . . . . . . . . . . . . . . . . . . . . . . . . . . . 2 . . . . . . . Parts Stolen . | . . . . . . . . . . . . . . . . . . . . . . . . . . . . . . . . . . . . Parts Stripped . | . . . . . . . . . . . . . . . . . . . . . . . . . . . . . . . . . . . . Power Chain Reactions 23 | . . . . . . . . . . . . 1 . . . . 1 . . 10 . 4 . 1 . . . . . 1 . 1 . 1 3 Missiles Intercepted . | . . . . . . . . . . . . . . . . . . . . . . . . . . . . . . . . . . . . Alert | -11 -10 -10 -9 -9 -9 -8 -8 -7 -7 -7 -7 -6 -6 -6 -6 -6 -6 -6 -6 -5 -5 -5 -5 -4 -4 -4 -4 -3 -3 -3 -2 -2 -1 -1 -1 ------- Run | Scr Mat Min Mat Min Exi Min Mat Fac Low Low Dat Pro Fac Was Fac Ext Cet Arc Hub Fac Upp Upp War Pro Fac Arm Lab Res Qua Sec Res Tes Acc Com Ac0 Peak Influence 1496 | 25 372 210 383 268 . 118 234 253 . . . . 107 42 140 308 542 328 583 1496 . . . . 865 1214 . 407 258 1271 956 787 568 265 . Initial 714 | . 16 112 . 148 . . 45 . . . . . 107 37 . 35 154 136 . 285 . . . . 81 423 . . 222 2 714 420 381 113 . Average 279 | 16 195 80 116 233 . 29 74 106 . . . . 107 5 31 146 343 203 168 905 . . . . 368 749 . 191 98 523 826 635 298 76 . Maximum Alert Level 4 | . 1 1 1 1 . . 1 1 . . . . . . . 1 2 1 2 4 . . . . 3 4 . 2 1 4 3 3 2 2 . Low Security (%) 48 | 100 57 76 82 . . 100 82 76 . . . . 100 100 100 68 27 55 73 . . . . . 33 . . 64 81 16 . . 32 24 . Level 1 25 | . 42 23 17 99 . . 17 23 . . . . . . . 31 37 44 4 19 . . . . 32 2 . 35 18 35 . . 38 35 . Level 2 15 | . . . . . . . . . . . . . . . . . 35 . 21 4 . . . . 11 48 . . . 19 . 72 29 40 . Level 3 7 | . . . . . . . . . . . . . . . . . . . . 44 . . . . 23 19 . . . 19 100 27 . . . Level 4 3 | . . . . . . . . . . . . . . . . . . . . 31 . . . . . 29 . . . 9 . . . . . Level 5 . | . . . . . . . . . . . . . . . . . . . . . . . . . . . . . . . . . . . . High Security . | . . . . . . . . . . . . . . . . . . . . . . . . . . . . . . . . . . . . Max Security . | . . . . . . . . . . . . . . . . . . . . . . . . . . . . . . . . . . . . Squads Dispatched 82 | . 3 . 1 . . . 1 6 . . . . 1 . 2 4 . . 2 8 . . . . 9 5 . 3 5 17 . 9 3 3 . Investigation 11 | . 2 . 1 . . . 1 . . . . . . . . 1 . . 1 . . . . . . . . 2 . 3 . . . . . Extermination 27 | . . . . . . . . 2 . . . . 1 . . . . . . 1 . . . . 3 3 . . 4 8 . 2 2 1 . Reinforcement 30 | . 1 . . . . . . 4 . . . . . . 2 3 . . 1 4 . . . . . . . 1 1 4 . 6 1 2 . Assault 9 | . . . . . . . . . . . . . . . . . . . . 2 . . . . 2 2 . . . 2 . 1 . . . Garrison 5 | . . . . . . . . . . . . . . . . . . . . 1 . . . . 4 . . . . . . . . . . Intercept . | . . . . . . . . . . . . . . . . . . . . . . . . . . . . . . . . . . . . Construction Impeded 8 | . . . . . . . . 1 . . . . . . . . . . . 3 . . . . . . . . . 1 . 2 1 . . Haulers Reinforced 4 | . . . . . . . . . . . . . . . 1 . . . . 1 . . . . . . . . . 1 . 1 . . . Stealth | -11 -10 -10 -9 -9 -9 -8 -8 -7 -7 -7 -7 -6 -6 -6 -6 -6 -6 -6 -6 -5 -5 -5 -5 -4 -4 -4 -4 -3 -3 -3 -2 -2 -1 -1 -1 --------- Run | Scr Mat Min Mat Min Exi Min Mat Fac Low Low Dat Pro Fac Was Fac Ext Cet Arc Hub Fac Upp Upp War Pro Fac Arm Lab Res Qua Sec Res Tes Acc Com Ac0 Distress Signals 63 | . 4 . . . . . . . . . . . . . 1 2 2 . 2 1 . . 1 . 2 1 . 10 1 3 8 2 1 22 . Communications Jammed . | . . . . . . . . . . . . . . . . . . . . . . . . . . . . . . . . . . . . Distress Signals . | . . . . . . . . . . . . . . . . . . . . . . . . . . . . . . . . . . . . Times Spotted 767 | . 23 6 7 3 38 4 6 23 2 3 4 18 . 6 10 41 17 19 29 54 . 25 23 17 36 39 . 28 10 95 12 16 24 31 98 Peak Tracking Total 12 | . 4 3 4 2 9 4 6 5 1 3 2 6 1 2 2 5 5 1 5 8 . 5 10 5 9 6 . 12 2 8 3 5 5 4 7 Tactical Retreats 41 | . . . . . 8 . . 2 . . . 3 . 1 . 1 . . 5 7 . 3 . 1 . . . 1 . 9 . . . . . Traps | -11 -10 -10 -9 -9 -9 -8 -8 -7 -7 -7 -7 -6 -6 -6 -6 -6 -6 -6 -6 -5 -5 -5 -5 -4 -4 -4 -4 -3 -3 -3 -2 -2 -1 -1 -1 ------- Run | Scr Mat Min Mat Min Exi Min Mat Fac Low Low Dat Pro Fac Was Fac Ext Cet Arc Hub Fac Upp Upp War Pro Fac Arm Lab Res Qua Sec Res Tes Acc Com Ac0 Traps Triggered 30 | . . . . . . . . 1 . . . . 1 . . 5 . . . 3 . . . . 1 2 . 1 2 2 . . . 12 . Indirectly 2 | . . . . . . . . . . . . . . . . . . . . 2 . . . . . . . . . . . . . . . Trap Hack Attempts . | . . . . . . . . . . . . . . . . . . . . . . . . . . . . . . . . . . . . Triggered . | . . . . . . . . . . . . . . . . . . . . . . . . . . . . . . . . . . . . Disarmed 6 | . 1 . . . . . . . . . . . . . . . . . . . . . . . . . . 5 . . . . . . . Reprogrammed . | . . . . . . . . . . . . . . . . . . . . . . . . . . . . . . . . . . . . Reused . | . . . . . . . . . . . . . . . . . . . . . . . . . . . . . . . . . . . . Traps Extracted . | . . . . . . . . . . . . . . . . . . . . . . . . . . . . . . . . . . . . Installed . | . . . . . . . . . . . . . . . . . . . . . . . . . . . . . . . . . . . . Triggered 10 | . . . . . . . . . . 1 . . . . . . . . . . . . 8 . . . . 1 . . . . . . . Exploded 2 | . . . . . 2 . . . . . . . . . . . . . . . . . . . . . . . . . . . . . . Machines | -11 -10 -10 -9 -9 -9 -8 -8 -7 -7 -7 -7 -6 -6 -6 -6 -6 -6 -6 -6 -5 -5 -5 -5 -4 -4 -4 -4 -3 -3 -3 -2 -2 -1 -1 -1 ---------- Run | Scr Mat Min Mat Min Exi Min Mat Fac Low Low Dat Pro Fac Was Fac Ext Cet Arc Hub Fac Upp Upp War Pro Fac Arm Lab Res Qua Sec Res Tes Acc Com Ac0 Machines Disabled 120 | . 8 2 . . 7 1 . 2 . . 1 3 . . . 2 2 1 4 14 . . . 1 12 11 1 2 6 16 1 6 4 3 10 Max in Single Turn 5 | . 3 2 . . 2 1 . 1 . . 1 1 . . . 1 1 . 3 4 . . . 1 5 3 1 1 1 1 1 1 1 2 1 Garrison Access 5 | . . . . . . . . . . . . . . . . . . . . 1 . . . . 1 . . 1 . 1 1 . . . . Phase Generator 1 | . . . . . . . . . . . . . . . . . . . . . . . . . . . . . . . . . . 1 . Network Hub 2 | . . . . . . . . . . . . . . . . . . . 2 . . . . . . . . . . . . . . . . Machines Sabotaged 1 | . . . . . . . . . . . . . . . . . . . 1 . . . . . . . . . . . . . . . . Garrisons Compromised . | . . . . . . . . . . . . . . . . . . . . . . . . . . . . . . . . . . . . Overloaded Fab Kills . | . . . . . . . . . . . . . . . . . . . . . . . . . . . . . . . . . . . . Fab Network Shutdowns . | . . . . . . . . . . . . . . . . . . . . . . . . . . . . . . . . . . . . Hacking | -11 -10 -10 -9 -9 -9 -8 -8 -7 -7 -7 -7 -6 -6 -6 -6 -6 -6 -6 -6 -5 -5 -5 -5 -4 -4 -4 -4 -3 -3 -3 -2 -2 -1 -1 -1 --------- Run | Scr Mat Min Mat Min Exi Min Mat Fac Low Low Dat Pro Fac Was Fac Ext Cet Arc Hub Fac Upp Upp War Pro Fac Arm Lab Res Qua Sec Res Tes Acc Com Ac0 Machines Accessed 118 | . 9 1 5 1 2 . 6 5 . . 4 1 1 . 3 14 2 . 5 1 2 1 2 1 5 2 . 5 8 17 . 7 4 4 . Terminals 90 | . 7 . 4 . . . 6 4 . . . 1 . . 3 14 2 . 5 . . . . 1 5 . . 4 7 15 . 4 4 4 . Fabricators 5 | . . . . . . . . 1 . . . . 1 . . . . . . 1 . . . . . 1 . . . . . 1 . . . Repair Stations 1 | . . . . . . . . . . . . . . . . . . . . . . . . . . 1 . . . . . . . . . Recycling Units 3 | . 2 . 1 . . . . . . . . . . . . . . . . . . . . . . . . . . . . . . . . Scanalyzers 5 | . . . . . . . . . . . . . . . . . . . . . . . . . . . . 1 1 1 . 2 . . . Garrison Access 1 | . . . . . . . . . . . . . . . . . . . . . . . . . . . . . . 1 . . . . . Total Hacks 590 | . 40 1 13 1 2 . 27 18 . . 27 2 1 . 5 56 8 . 13 4 7 1 5 11 46 15 . 47 46 83 . 44 37 30 . Successful 297 | . 23 1 6 1 2 . 11 10 . . 27 2 . . 1 27 5 . 7 2 7 1 5 3 16 5 . 29 27 37 . 15 12 15 . Failed 288 | . 17 . 7 . . . 15 8 . . . . 1 . 4 28 3 . 6 2 . . . 7 29 10 . 17 19 46 . 29 25 15 . Catastrophic 39 | . 3 . 1 . . . 4 . . . . . . . . 1 1 . 1 . . . . . 2 . . . 1 12 . 4 9 . . Database Lockouts 5 | . . . . . . . 1 . . . . . . . . 1 . . . . . . . 1 1 . . 1 . . . . . . . Manual 299 | . 20 . 10 . 1 . 21 10 . . . . . . 2 36 9 . 8 . . . 1 10 22 5 . 20 29 39 . 25 8 23 . Terminals 482 | . 35 . 11 . . . 27 13 . . . 2 . . 5 56 8 . 13 . . . . 11 46 . . 40 45 75 . 28 37 30 . Fabricators 28 | . . . . . . . . 5 . . . . 1 . . . . . . 4 . . . . . 11 . . . . . 7 . . . Repair Stations 4 | . . . . . . . . . . . . . . . . . . . . . . . . . . 4 . . . . . . . . . Recycling Units 7 | . 5 . 2 . . . . . . . . . . . . . . . . . . . . . . . . . . . . . . . . Scanalyzers 23 | . . . . . . . . . . . . . . . . . . . . . . . . . . . . 7 1 6 . 9 . . . Garrison Access 2 | . . . . . . . . . . . . . . . . . . . . . . . . . . . . . . 2 . . . . . Terminal Hacks 217 | . 15 1 2 1 2 . 11 8 . . 27 2 . . 1 20 4 . 4 . 7 1 5 3 13 . . 19 21 25 . 6 9 10 . Record 21 | . . . . . 1 . . . . . 11 2 . . . . . . . . 6 . . 1 . . . . . . . . . . . Part Schematic 16 | . . . . . . . 1 . . . 8 . . . . . . . . . . . . . 2 . . . 1 2 . . 2 . . Robot Schematic 8 | . 2 . . . . . . . . . 5 . . . . . . . . . . . . . . . . . 1 . . . . . . Robot Analysis 5 | . 2 . . . . . . . . . . . . . . . . . . . . . . . . . . 2 1 . . . . . . Prototype ID Bank 38 | . 6 . . . . . 1 3 . . 3 . . . . 3 1 . . . . . 4 2 2 . . 6 4 2 . . 1 . . Open Door 17 | . . 1 . 1 . . . . . . . . . . . 6 . . . . 1 1 1 . . . . . . 5 . . . 1 . Level Access Points 4 | . . . . . . . 1 . . . . . . . . . . . . . . . . . . . . . 1 . . . 1 1 . Branch Access Points 5 | . . . . . . . 1 1 . . . . . . 1 . . . . . . . . . 1 . . 1 . . . . . . . Emergency Access Points 1 | . . . . . . . . . . . . . . . . . . . . . . . . . . . . . . . . 1 . . . Machine Index 3 | . . . . . . . . . . . . . . . . . . . . . . . . . 1 . . 1 . . . . . 1 . Terminal Index 4 | . 1 . . . . . . . . . . . . . . . . . 1 . . . . . . . . . 1 . . 1 . . . Scanalyzer Index 1 | . . . . . . . . . . . . . . . . . . . . . . . . . . . . . . . . . 1 . . Garrison Index 1 | . . . . . . . . . . . . . . . . . . . . . . . . . . . . . 1 . . . . . . Alert Level 15 | . . . . . . . . 1 . . . . . . . 2 1 . 1 . . . . . 2 . . 1 1 4 . . . 2 . Unreport Threat 19 | . . . . . . . 3 . . . . . . . . 2 1 . 1 . . . . . . . . . 2 4 . . 3 3 . Locate Traps 8 | . 1 . . . . . . 1 . . . . . . . 1 . . 1 . . . . . . . . 1 2 . . 1 . . . Disarm Traps 2 | . 1 . . . . . . . . . . . . . . . . . . . . . . . . . . 1 . . . . . . . Dispatch Records 2 | . . . . . . . . . . . . . . . . 1 1 . . . . . . . . . . . . . . . . . . Security Status 1 | . . . . . . . . . . . . . . . . 1 . . . . . . . . . . . . . . . . . . . Patrol Status 6 | . . . . . . . 1 . . . . . . . . . . . . . . . . . . . . 2 2 . . . . 1 . Investigation Status 2 | . . . . . . . 1 1 . . . . . . . . . . . . . . . . . . . . . . . . . . . Reinforcement Status 1 | . . . . . . . . 1 . . . . . . . . . . . . . . . . . . . . . . . . . . . Recall Investigation 3 | . . . . . . . 1 . . . . . . . . 1 . . . . . . . . . . . 1 . . . . . . . Recall Extermination 3 | . . . . . . . . . . . . . . . . . . . . . . . . . . . . . 1 1 . 1 . . . Recall Reinforcements 3 | . . . . . . . . . . . . . . . . 2 . . . . . . . . . . . 1 . . . . . . . Recall Assault 1 | . . . . . . . . . . . . . . . . . . . . . . . . . . . . . . . . 1 . . . Hauler Manifests 4 | . 1 . . . . . 1 . . . . . . . . . . . . . . . . . 1 . . 1 . . . . . . . Registered Components 1 | . . . . . . . . . . . . . . . . . . . . . . . . . 1 . . . . . . . . . . Registered Prototypes 1 | . . . . . . . . . . . . . . . . . . . . . . . . . 1 . . . . . . . . . . Zone Layout 19 | . 1 . 2 . . . . . . . . . . . . 1 . . . . . . . . 2 . . 1 3 7 . 1 1 . . EX-Prototype ID Bank 1 | . . . . . 1 . . . . . . . . . . . . . . . . . . . . . . . . . . . . . . Disengage Seal 1 | . . . . . . . . . . . . . . . . . . . . . . . . . . . . . . . . . . 1 . Fabricator Hacks 8 | . . . . . . . . 2 . . . . . . . . . . . 2 . . . . . 2 . . . . . 2 . . . Load Schematic 4 | . . . . . . . . 1 . . . . . . . . . . . 1 . . . . . 1 . . . . . 1 . . . Build 4 | . . . . . . . . 1 . . . . . . . . . . . 1 . . . . . 1 . . . . . 1 . . . Repair Station Hacks 2 | . . . . . . . . . . . . . . . . . . . . . . . . . . 2 . . . . . . . . . Scan Component 1 | . . . . . . . . . . . . . . . . . . . . . . . . . . 1 . . . . . . . . . Repair 1 | . . . . . . . . . . . . . . . . . . . . . . . . . . 1 . . . . . . . . . Recycling Unit Hacks 4 | . 3 . 1 . . . . . . . . . . . . . . . . . . . . . . . . . . . . . . . . Report Inventory 3 | . 2 . 1 . . . . . . . . . . . . . . . . . . . . . . . . . . . . . . . . Retrieve Components 1 | . 1 . . . . . . . . . . . . . . . . . . . . . . . . . . . . . . . . . . Scanalyzer 16 | . . . . . . . . . . . . . . . . . . . . . . . . . . . . 7 . 3 . 6 . . . Insert Component 15 | . . . . . . . . . . . . . . . . . . . . . . . . . . . . 6 . 3 . 6 . . . Analyze 1 | . . . . . . . . . . . . . . . . . . . . . . . . . . . . 1 . . . . . . . Garrison Access Hacks 1 | . . . . . . . . . . . . . . . . . . . . . . . . . . . . . . 1 . . . . . Seal Access 1 | . . . . . . . . . . . . . . . . . . . . . . . . . . . . . . 1 . . . . . Unauthorized Hacks 49 | . 5 . 3 . . . . . . . . . . . . 7 1 . 3 . . . . . 3 1 . 3 6 8 . 1 3 5 . Terminals 44 | . 3 . 2 . . . . . . . . . . . . 7 1 . 3 . . . . . 3 . . 3 5 8 . 1 3 5 . Track 21 | . 3 . 2 . . . . . . . . . . . . 4 . . 2 . . . . . 1 . . . 2 4 . . . 3 . Assimilate 5 | . . . . . . . . . . . . . . . . . . . . . . . . . 1 . . 1 1 2 . . . . . Botnet 16 | . . . . . . . . . . . . . . . . 3 1 . . . . . . . 1 . . 1 2 2 . 1 3 2 . Operators 1 | . . . . . . . . . . . . . . . . . . . . . . . . . . . . 1 . . . . . . . Sabotage 1 | . . . . . . . . . . . . . . . . . . . 1 . . . . . . . . . . . . . . . . Fabricators 1 | . . . . . . . . . . . . . . . . . . . . . . . . . . 1 . . . . . . . . . Prioritize 1 | . . . . . . . . . . . . . . . . . . . . . . . . . . 1 . . . . . . . . . Repair Stations . | . . . . . . . . . . . . . . . . . . . . . . . . . . . . . . . . . . . . Recycling Units 3 | . 2 . 1 . . . . . . . . . . . . . . . . . . . . . . . . . . . . . . . . Tunnel 3 | . 2 . 1 . . . . . . . . . . . . . . . . . . . . . . . . . . . . . . . . Scanalyzers 1 | . . . . . . . . . . . . . . . . . . . . . . . . . . . . . 1 . . . . . . Researchers 1 | . . . . . . . . . . . . . . . . . . . . . . . . . . . . . 1 . . . . . . Garrison Access . | . . . . . . . . . . . . . . . . . . . . . . . . . . . . . . . . . . . . Data Cores Recovered 2 | . . . . . . . . . . . . . . . . 1 . . 1 . . . . . . . . . . . . . . . . Used 1 | . . . . . . . . . . . . . . . . . . . 1 . . . . . . . . . . . . . . . . Hacking Detections 90 | . 7 . 4 . . . 6 5 . . . 1 1 . 3 13 1 . 5 1 . . . 1 4 . . 4 6 13 . 7 4 4 . Full Trace Events 8 | . 1 . 1 . . . 1 . . . . . . . . 1 . . . . . . . . . . . 1 . 3 . . . . . Feedback Events 1 | . . . . . . . 1 . . . . . . . . . . . . . . . . . . . . . . . . . . . . Corruption 1 | . . . . . . . 1 . . . . . . . . . . . . . . . . . . . . . . . . . . . . Feedback Blocked . | . . . . . . . . . . . . . . . . . . . . . . . . . . . . . . . . . . . . Robot Schematics Acquired 8 | . 2 . . . . . . . . . 5 . . . . . . . . . . . . . . . . . 1 . . . . . . Robots Built . | . . . . . . . . . . . . . . . . . . . . . . . . . . . . . . . . . . . . Matter . | . . . . . . . . . . . . . . . . . . . . . . . . . . . . . . . . . . . . Time . | . . . . . . . . . . . . . . . . . . . . . . . . . . . . . . . . . . . . Total Robot Build Rating . | . . . . . . . . . . . . . . . . . . . . . . . . . . . . . . . . . . . . Part Schematics Acquired 17 | . . . . . . . 1 . . . 8 . . . . . . . . . . . . . 2 . . 1 1 2 . . 2 . . Parts Built 7 | . . . . . . . . 2 . . . . . . . . . . . 1 . . . . . 2 . . . . . 2 . . . Matter 833 | . . . . . . . . 146 . . . . . . . . . . . 285 . . . . . 146 . . . . . 256 . . . Time 190 | . . . . . . . . 36 . . . . . . . . . . . 76 . . . . . 36 . . . . . 42 . . . Total Part Build Rating 33 | . . . . . . . . 6 . . . . . . . . . . . 5 . . . . . 6 . . . . . 16 . . . Parts Repaired 1 | . . . . . . . . . . . . . . . . . . . . . . . . . . 1 . . . . . . . . . Time 38 | . . . . . . . . . . . . . . . . . . . . . . . . . . 38 . . . . . . . . . Parts Recycled . | . . . . . . . . . . . . . . . . . . . . . . . . . . . . . . . . . . . . Recycled Matter . | . . . . . . . . . . . . . . . . . . . . . . . . . . . . . . . . . . . . Retrieved Matter . | . . . . . . . . . . . . . . . . . . . . . . . . . . . . . . . . . . . . Retrieved Components 6 | . 6 . . . . . . . . . . . . . . . . . . . . . . . . . . . . . . . . . . Parts Scanalyzed 1 | . . . . . . . . . . . . . . . . . . . . . . . . . . . . 1 . . . . . . . Part Schematics Acquired 1 | . . . . . . . . . . . . . . . . . . . . . . . . . . . . 1 . . . . . . . Parts Damaged . | . . . . . . . . . . . . . . . . . . . . . . . . . . . . . . . . . . . . Bothacking | -11 -10 -10 -9 -9 -9 -8 -8 -7 -7 -7 -7 -6 -6 -6 -6 -6 -6 -6 -6 -5 -5 -5 -5 -4 -4 -4 -4 -3 -3 -3 -2 -2 -1 -1 -1 ------------ Run | Scr Mat Min Mat Min Exi Min Mat Fac Low Low Dat Pro Fac Was Fac Ext Cet Arc Hub Fac Upp Upp War Pro Fac Arm Lab Res Qua Sec Res Tes Acc Com Ac0 Used RIF Installer . | . . . . . . . . . . . . . . . . . . . . . . . . . . . . . . . . . . . . Robots Hacked 1 | . . . . . . . . . . . . . . . . . . 1 . . . . . . . . . . . . . . . . . Non-combat 1 | . . . . . . . . . . . . . . . . . . 1 . . . . . . . . . . . . . . . . . Combat . | . . . . . . . . . . . . . . . . . . . . . . . . . . . . . . . . . . . . Robot Hacks Applied 1 | . . . . . . . . . . . . . . . . . . 1 . . . . . . . . . . . . . . . . . check_alert 1 | . . . . . . . . . . . . . . . . . . 1 . . . . . . . . . . . . . . . . . Relay Couplers Released 12 | . . . . . . . . . . . . . . . . . . . . 1 . . . . 6 . . 3 . . 2 . . . . Machine Destruction 6 | . . . . . . . . . . . . . . . . . . . . 1 . . . . . . . 3 . . 2 . . . . Programmers 6 | . . . . . . . . . . . . . . . . . . . . . . . . . 6 . . . . . . . . . . Robots Rewired 14 | . . . . . . . . . . . . . . . . 13 . . . . . . 1 . . . . . . . . . . . . Allies Hacked . | . . . . . . . . . . . . . . . . . . . . . . . . . . . . . . . . . . . . Hacks Repelled . | . . . . . . . . . . . . . . . . . . . . . . . . . . . . . . . . . . . . Allies | -11 -10 -10 -9 -9 -9 -8 -8 -7 -7 -7 -7 -6 -6 -6 -6 -6 -6 -6 -6 -5 -5 -5 -5 -4 -4 -4 -4 -3 -3 -3 -2 -2 -1 -1 -1 -------- Run | Scr Mat Min Mat Min Exi Min Mat Fac Low Low Dat Pro Fac Was Fac Ext Cet Arc Hub Fac Upp Upp War Pro Fac Arm Lab Res Qua Sec Res Tes Acc Com Ac0 Total Allies 34 | . . 2 . . . . . . . . . . . . . 22 5 . . . . . 1 . 1 . . 1 . 2 . . . . . Largest Group 15 | . . 2 1 . . . . . . . . . . . . 15 15 3 . . . . 1 1 1 . . 1 . 1 . . . . . Highest-Rated Group 766 | . . 42 31 . . . . . . . . . . . . 578 766 219 . . . . 60 60 26 . . 10 . 44 . . . . . Highest-Rated Ally 156 | . . 31 31 . . . . . . . . . . . . 156 156 94 . . . . 60 60 26 . . 10 . 44 . . . . . Total Orders 44 | . . . . . 10 . . . . . . . . . . . 6 2 . . . . 2 . 2 . . . . . . . 1 5 16 STAY 4 | . . . . . . . . . . . . . . . . . 1 1 . . . . 1 . 1 . . . . . . . . . . ROAM 3 | . . . . . . . . . . . . . . . . . 2 1 . . . . . . . . . . . . . . . . . FOLLOW 5 | . . . . . . . . . . . . . . . . . 3 . . . . . 1 . 1 . . . . . . . . . . EXPLORE 13 | . . . . . . . . . . . . . . . . . . . . . . . . . . . . . . . . . 1 4 8 RETURN 19 | . . . . . 10 . . . . . . . . . . . . . . . . . . . . . . . . . . . . 1 8 Ally Attacks 207 | . . 9 3 . 45 . . . . . . . . . . 50 57 17 . . . . . . . . . . . . . . . . 26 Total Damage 4686 | . . 85 42 . 281 . . . . . . . . . . 1055 2373 678 . . . . . . . . . . . . . . . . 172 Kills 32 | . . 1 1 . 2 . . . . . . . . . . 10 14 4 . . . . . . . . . . . . . . . . . Allies Corrupted 3 | . . . . . . . . . . . . . . . . 1 1 1 . . . . . . . . . . . . . . . . . Allies Melted . | . . . . . . . . . . . . . . . . . . . . . . . . . . . . . . . . . . . . Intel | -11 -10 -10 -9 -9 -9 -8 -8 -7 -7 -7 -7 -6 -6 -6 -6 -6 -6 -6 -6 -5 -5 -5 -5 -4 -4 -4 -4 -3 -3 -3 -2 -2 -1 -1 -1 ------- Run | Scr Mat Min Mat Min Exi Min Mat Fac Low Low Dat Pro Fac Was Fac Ext Cet Arc Hub Fac Upp Upp War Pro Fac Arm Lab Res Qua Sec Res Tes Acc Com Ac0 Robot Analysis Total 5 | . 2 . . . . . . . . . . . . . . . . . . . . . . . . . . 2 1 . . . . . . Derelict Logs Recovered 8 | . . 2 . . . . . . 1 1 . 1 . . . . . . . . 1 1 . 1 . . . . . . . . . . . Drone Launches 53 | . . . . . 28 . . . . . . . . . . . . . . . . . . . . . . . . . . . 2 4 19 Drone Recoveries 46 | . . . . . 28 . . . . . . . . . . . . . . . . . . . . . . . . . . . . 1 17 Exploration | -11 -10 -10 -9 -9 -9 -8 -8 -7 -7 -7 -7 -6 -6 -6 -6 -6 -6 -6 -6 -5 -5 -5 -5 -4 -4 -4 -4 -3 -3 -3 -2 -2 -1 -1 -1 ------------- Run | Scr Mat Min Mat Min Exi Min Mat Fac Low Low Dat Pro Fac Was Fac Ext Cet Arc Hub Fac Upp Upp War Pro Fac Arm Lab Res Qua Sec Res Tes Acc Com Ac0 Turns Passed 43423 | 135 1290 1116 259 370 4142 264 404 2462 689 355 556 1012 293 2535 694 1982 400 838 661 819 770 904 1142 458 1127 1027 421 767 1292 3950 443 1197 837 4781 3031 Spaces Moved 17473 | 80 637 414 106 171 1625 114 164 776 288 151 196 365 138 194 323 784 142 228 235 332 472 509 670 260 512 434 213 365 520 1470 258 441 395 2291 1200 Core 108 | 42 . . . . . . . . . . . . . 55 . . . 11 . . . . . . . . . . . . . . . . . Treads 17365 | 38 637 414 106 171 1625 114 164 776 288 151 196 365 138 139 323 784 142 217 235 332 472 509 670 260 512 434 213 365 520 1470 258 441 395 2291 1200 Legs . | . . . . . . . . . . . . . . . . . . . . . . . . . . . . . . . . . . . . Wheels . | . . . . . . . . . . . . . . . . . . . . . . . . . . . . . . . . . . . . Hover . | . . . . . . . . . . . . . . . . . . . . . . . . . . . . . . . . . . . . Flight . | . . . . . . . . . . . . . . . . . . . . . . . . . . . . . . . . . . . . Fastest Speed 50 | 50 160 180 210 210 190 230 230 217 230 230 230 230 206 180 180 180 180 180 180 160 160 160 160 160 160 160 186 165 165 155 155 155 155 155 135 Average Speed 191 | 102 168 180 210 210 219 230 230 224 230 230 240 248 206 1060 180 180 180 323 180 172 160 160 160 160 166 175 186 172 165 160 155 155 155 164 154 Slowest Speed 3250 | 160 180 190 210 210 250 230 230 250 230 230 250 250 206 3250 180 180 180 3150 200 180 160 160 180 160 180 186 186 186 172 172 155 155 175 205 155 Overloaded Moves . | . . . . . . . . . . . . . . . . . . . . . . . . . . . . . . . . . . . . Propulsion Burnouts . | . . . . . . . . . . . . . . . . . . . . . . . . . . . . . . . . . . . . Robots Hopped . | . . . . . . . . . . . . . . . . . . . . . . . . . . . . . . . . . . . . Cave-ins Triggered . | . . . . . . . . . . . . . . . . . . . . . . . . . . . . . . . . . . . . Teleports 2 | . . . . . . . . . . . . . . . . . . . . . . . . . . . . . . . . . . 1 1 Exploration Rate (%) 51 | 4 95 90 17 44 91 38 23 24 57 34 80 51 4 68 13 82 62 85 27 19 77 75 73 54 21 39 98 18 59 81 12 65 16 82 75 Regions Visited 35 Branch Regions 23 Pre-discovered Areas 6 | . 2 . 1 . 1 . . . . . 1 1 . . . . . . . . . . . . . . . . . . . . . . . Known Exits Taken 18 | . . . . . . . 1 1 . . . 1 . . 1 . . . . 1 1 1 1 1 1 1 1 1 1 1 1 1 1 . . Unknown Exits Taken 15 | 1 1 1 1 1 1 1 . . 1 1 1 . . . . 1 1 1 1 . . . . . . . . . . . . . . 1 . Scrap Searched 12 | . . 1 . . . 1 . . 3 . . 1 . . . . . . . . 2 2 . 2 . . . . . . . . . . . Spaces Dug 256 | . 21 . 1 . 9 18 7 18 . . . 10 . . . . . . . 13 . 4 1 1 6 19 . 11 3 44 2 19 8 23 18 Terrain Destroyed 1812 | . 91 12 14 16 53 18 44 25 . . . 39 . 4 . . 18 . 157 95 . 19 1 3 75 91 . 17 5 95 16 51 11 128 714 Melee 72 | . . . 1 . . . . 5 . . . . . . . . . . . . . . 1 . . . . . 3 33 1 12 6 10 . Projectile 909 | . . . . . . . . 7 . . . . . 4 . . . . 12 4 . . . 2 12 14 . 17 2 62 15 20 5 39 694 AOE 831 | . 91 12 13 16 53 18 44 13 . . . 39 . . . . 18 . 145 91 . 19 . 1 63 77 . . . . . 19 . 79 20 Terrain Rammed . | . . . . . . . . . . . . . . . . . . . . . . . . . . . . . . . . . . . . Walls Destroyed . | . . . . . . . . . . . . . . . . . . . . . . . . . . . . . . . . . . . . Machines Disabled . | . . . . . . . . . . . . . . . . . . . . . . . . . . . . . . . . . . . . Actions | -11 -10 -10 -9 -9 -9 -8 -8 -7 -7 -7 -7 -6 -6 -6 -6 -6 -6 -6 -6 -5 -5 -5 -5 -4 -4 -4 -4 -3 -3 -3 -2 -2 -1 -1 -1 --------- Run | Scr Mat Min Mat Min Exi Min Mat Fac Low Low Dat Pro Fac Was Fac Ext Cet Arc Hub Fac Upp Upp War Pro Fac Arm Lab Res Qua Sec Res Tes Acc Com Ac0 Total 25511 | 112 792 778 128 177 2059 115 180 1386 303 155 260 434 146 630 407 1238 247 286 384 518 485 580 737 296 754 635 238 469 911 2618 289 922 600 3213 2029 Wait 4005 | 4 46 341 4 . 131 . . 474 5 1 3 18 . 352 44 239 55 9 63 50 3 25 9 19 103 54 . 24 312 469 . 361 85 549 153 Move 17439 | 79 636 413 105 170 1624 113 163 775 287 150 195 364 138 193 322 783 141 227 234 331 471 508 669 259 511 433 212 365 519 1469 257 440 394 2290 1199 Hop . | . . . . . . . . . . . . . . . . . . . . . . . . . . . . . . . . . . . . Pick Up 330 | 4 19 8 2 1 54 . 3 14 . . 8 6 2 20 4 2 5 10 7 9 2 3 19 1 4 10 5 4 4 25 3 8 1 32 31 Fast Attach 144 | 7 5 3 . . 8 . . 3 . . 5 . . 3 2 2 4 . 3 . . . . 1 1 4 5 5 11 16 . 3 . 31 22 Attach 290 | . 4 . 2 . 12 . 2 9 . . 7 3 2 5 2 1 1 . 7 14 4 2 6 1 27 9 3 6 8 22 4 11 11 34 71 Detach 190 | . 1 . . . 9 . . 5 . . 8 . . . . 1 . . 10 4 . 1 1 1 24 5 2 4 6 13 2 12 9 27 45 Swap 404 | . 7 5 3 2 21 . 1 16 2 . 5 7 4 16 8 24 5 8 13 19 2 12 1 10 17 29 . 7 10 82 . 6 17 8 37 Drop 331 | . 16 3 . . 51 . 2 13 . . 12 4 . 13 5 4 8 3 2 22 1 4 16 2 4 5 7 5 11 27 . 5 1 51 34 Fire 1887 | 18 47 2 8 3 75 2 7 61 8 4 9 31 . 28 16 56 12 25 42 67 . 25 12 2 59 85 4 45 17 388 21 58 74 154 422 Melee 217 | . . . 1 . 4 . . 5 . . 8 1 . . . 12 16 3 . . . . 1 . . . . . 13 107 2 18 8 18 . Ram . | . . . . . . . . . . . . . . . . . . . . . . . . . . . . . . . . . . . . Kick . | . . . . . . . . . . . . . . . . . . . . . . . . . . . . . . . . . . . . Crush 142 | . 11 3 3 1 70 . 2 11 1 . . . . . 4 5 . 1 3 2 2 . . . 4 1 . 2 . . . . . 1 15 Escape Stasis 28 | . . . . . . . . . . . . . . . . 8 . . . . . . . . . . . 2 . . . . . 18 . Rewire 104 | . . . . . . . . . . . . . . . . 101 . . . . . . 3 . . . . . . . . . . . . Trap . | . . . . . . . . . . . . . . . . . . . . . . . . . . . . . . . . . . . . Miscellaneous . | . . . . . . . . . . . . . . . . . . . . . . . . . . . . . . . . . . . . Route ------- -11/Scrapyard -10/Materials (discovered 4 exits: *Mat x3 / *Min) -10/Mines (discovered 2 exits: *Mat x2) -9/Materials -9/Mines (discovered 2 exits: *Mat / *Exi) -9/Exiles -8/Mines -8/Materials (discovered 3 exits: *Fac x3) -7/Factory (discovered 4 exits: *Fac x2 / *Low x2) -7/Lower Caves -7/Lower Caves -7/Data Miner -6/Proximity Caves -6/Factory -6/Waste -6/Factory (discovered 4 exits: Low x2 / *Ext x2) -6/Extension (discovered 2 exits: *Fac / *Cet) -6/Cetus (discovered 2 exits: *Fac / [*Arc]) -6/Archives (discovered 3 exits: *Fac / *Hub x2) -6/Hub_04(d) (discovered 2 exits: *Fac x2) -5/Factory -5/Upper Caves -5/Upper Caves (discovered 2 exits: *Fac / *War) -5/Warlord -4/Proximity Caves -4/Factory (discovered 5 exits: *Res x2 / Upp x2 / *Arm) -4/Armory -4/Lab -3/Research (discovered 3 exits: *Res / *Qua x2) -3/Quarantine (discovered 2 exits: Res / *Sec) -3/Section 7 -2/Research -2/Testing -1/Access (discovered 2 exits: Sur / *Com) -1/Command (discovered 3 exits: *Sur x2 / [*Ac0]) -1/Access_0 0b11 Command History --------- Turn | Location | Event 3 | -11/Scrapyard | Discovered new exit (range 16) 136 | -11/Scrapyard | Entered Materials 327 | -10/Materials | Build established: Mutant 600 | -10/Materials | Discovered new exit (range 16) 977 | -10/Materials | Discovered new exit (range 11) 1084 | -10/Materials | Discovered new exit (range 7) 1167 | -10/Materials | Discovered new exit (range 14) 1426 | -10/Materials | Entered Mines 1453 | -10/Mines | Found a damaged Exp. Sensor Array with a note attached 1458 | -10/Mines | Found Prototype Device 1458 | -10/Mines | Identified Exp. Sensor Array 1747 | -10/Mines | Learned 2 Materials zone layouts 1756 | -10/Mines | Learned Materials stockpile data 1788 | -10/Mines | Discovered new exit (range 14) 2105 | -10/Mines | Discovered new exit (range 14) 2153 | -10/Mines | Met a Derelict who couldn't figure out how to use a Trap Extractor 2287 | -10/Mines | Build established: Hauler-Mutant 2542 | -10/Mines | Entered Materials 2542 | -9/Materials | Accompanied by 1 ally 2542 | -9/Materials | Evolved 2 slots: Utility x2 2547 | -9/Materials | Led the pair of lost Derelicts to an unsafe place 2765 | -9/Materials | Discovered new exit (range 16) 2801 | -9/Materials | Entered Mines 2880 | -9/Mines | Found the Drone Emporium 2892 | -9/Mines | Found Prototype Device 2893 | -9/Mines | Identified Thief Drone Bay 3084 | -9/Mines | Discovered new exit (range 13) 3162 | -9/Mines | Deemed a non-threat by the Exiles lab entrance 3162 | -9/Mines | Discovered new exit (range 5) 3171 | -9/Mines | Entered Exiles 3228 | -9/Exiles | Met 8R-AWN 3262 | -9/Exiles | Met EX-HEX 3485 | -9/Exiles | Met EX-DEC 3530 | -9/Exiles | Learned location of Zion (-6) 3807 | -9/Exiles | Met EX-BIN 3836 | -9/Exiles | Aligned with FarCom system 3838 | -9/Exiles | Given EX-Vault access code 3901 | -9/Exiles | Opened EX-Vault 3913 | -9/Exiles | Found XL Autogun Array 3916 | -9/Exiles | Found Firepult 3924 | -9/Exiles | Found Chronowheel 3971 | -9/Exiles | Warned to stay clear of 0b10 Research branches 4349 | -9/Exiles | Attacked by the Exiles 4411 | -9/Exiles | Discovered new exit (range 15) 4831 | -9/Exiles | Destroyed 8R-AWN 4860 | -9/Exiles | Found Prototype Protection 4860 | -9/Exiles | Identified 8R-AWN's Armor/EX 4884 | -9/Exiles | Found AS-neutralizer No. 17b 4888 | -9/Exiles | Found 8R-AWN's Boregun 5368 | -9/Exiles | Allies destroyed EX-BIN 5649 | -9/Exiles | Found Prototype Device 5649 | -9/Exiles | Identified System Purifier 5685 | -9/Exiles | Destroyed EX-DEC 5765 | -9/Exiles | Allies destroyed EX-HEX 5818 | -9/Exiles | Found Prototype Energy Gun 5830 | -9/Exiles | Identified AWS/EX-DEC 7313 | -9/Exiles | Entered Mines 7554 | -8/Mines | Discovered new exit (range 9) 7577 | -8/Mines | Entered Materials 7577 | -8/Materials | Evolved 2 slots: Utility x2 7866 | -8/Materials | Identified exit to Factory 7967 | -8/Materials | Central database locked down 7981 | -8/Materials | Entered Factory 7981 | -7/Factory | Evolved 2 slots: Utility x2 8080 | -7/Factory | Fabricated Imp. Weapon Shielding (x2) 8088 | -7/Factory | Found 8R-AWN's Boregun 9180 | -7/Factory | Discovered new exit (range 11) 9230 | -7/Factory | Identified exit to Lower Caves 10085 | -7/Factory | Discovered new exit (range 16) 10443 | -7/Factory | Entered Lower Caves 10444 | -7/Lower Caves | Encountered a Warlord checkpoint 10539 | -7/Lower Caves | Attracted the attention of an 0b10 checkpoint 10824 | -7/Lower Caves | Learned 8 Factory zone layouts 11040 | -7/Lower Caves | Discovered new exit (range 10) 11132 | -7/Lower Caves | Entered another Lower Caves area 11155 | -7/Lower Caves | Attracted the attention of an 0b10 checkpoint 11438 | -7/Lower Caves | Discovered new exit (range 15) 11487 | -7/Lower Caves | Entered Data Miner 11487 | -7/Data Miner | Discovered new exit (range 6) 11531 | -7/Data Miner | Met Data Miner 11575 | -7/Data Miner | Learned location of Section 7 (-3) 11575 | -7/Data Miner | Acquired the access code to Warlord's prototype stash 11618 | -7/Data Miner | Received God Mode back door access code from Data Miner 11657 | -7/Data Miner | Data Conduit disabled 11800 | -7/Data Miner | Found Prototype Device 11800 | -7/Data Miner | Identified Exp. Thermal Shield 12043 | -7/Data Miner | Entered Proximity Caves 12808 | -6/Proximity Caves | Discovered new exit (range 3) 12886 | -6/Proximity Caves | Attracted the attention of an 0b10 base 13032 | -6/Proximity Caves | Learned Extension security intel 13032 | -6/Proximity Caves | Identified exit to Factory 13055 | -6/Proximity Caves | Entered Factory 13055 | -6/Factory | Evolved 2 slots: Propulsion x1, Weapon x1 13348 | -6/Factory | Sucked down chute 13348 | -6/Factory | Entered Waste 13363 | -6/Waste | EMP discharged 13392 | -6/Waste | Destroyed C-40 Crusher 13434 | -6/Waste | Destroyed C-40 Crusher 13463 | -6/Waste | EMP discharged 13463 | -6/Waste | System corruption reached 10% 13487 | -6/Waste | Found Damper Plating 13539 | -6/Waste | Spotted C-40 Crusher 13563 | -6/Waste | EMP discharged 13564 | -6/Waste | Crushed by Compactor (1 part destroyed, 2 dropped) 13566 | -6/Waste | Destroyed C-40 Crusher 13572 | -6/Waste | Spotted C-40 Crusher 13578 | -6/Waste | Spotted C-40 Crusher 13588 | -6/Waste | Destroyed C-40 Crusher 13625 | -6/Waste | Destroyed C-40 Crusher 13653 | -6/Waste | Found Damper Plating 13658 | -6/Waste | Found Damper Plating 13663 | -6/Waste | EMP discharged 13678 | -6/Waste | Build established: Hauler-Gunner 13702 | -6/Waste | Spotted C-40 Crusher 13708 | -6/Waste | Destroyed C-40 Crusher 13751 | -6/Waste | Discovered new exit (range 12) 13763 | -6/Waste | EMP discharged 13763 | -6/Waste | System corruption reached 30% 13863 | -6/Waste | EMP discharged 13963 | -6/Waste | EMP discharged 14063 | -6/Waste | EMP discharged 14163 | -6/Waste | EMP discharged 14263 | -6/Waste | EMP discharged 14363 | -6/Waste | EMP discharged 14463 | -6/Waste | EMP discharged 14563 | -6/Waste | EMP discharged 14663 | -6/Waste | EMP discharged 14763 | -6/Waste | EMP discharged 14863 | -6/Waste | EMP discharged 14963 | -6/Waste | EMP discharged 15063 | -6/Waste | EMP discharged 15163 | -6/Waste | EMP discharged 15239 | -6/Waste | Build established: Hauler-Mutant 15263 | -6/Waste | EMP discharged 15363 | -6/Waste | EMP discharged 15463 | -6/Waste | EMP discharged 15563 | -6/Waste | EMP discharged 15663 | -6/Waste | EMP discharged 15763 | -6/Waste | EMP discharged 15863 | -6/Waste | EMP discharged 15883 | -6/Waste | Entered Factory 16288 | -6/Factory | Build established: Hauler-Tank 16325 | -6/Factory | Identified exit to Lower Caves 16325 | -6/Factory | Identified exit to Extension 16577 | -6/Factory | Entered Extension 16987 | -6/Extension | Spotted B-75 Beast 17005 | -6/Extension | Destroyed B-75 Beast 17015 | -6/Extension | Spotted B-75 Beast 17032 | -6/Extension | Destroyed B-75 Beast 17077 | -6/Extension | Disrupted transfer network 17944 | -6/Extension | Rescued a captive Derelict 18055 | -6/Extension | Central database locked down 18170 | -6/Extension | Rescued a captive Derelict 18236 | -6/Extension | Build established: Hauler-Gunner 18293 | -6/Extension | Rescued a captive Derelict 18294 | -6/Extension | Rescued a captive Derelict 18338 | -6/Extension | Rescued a captive Derelict 18343 | -6/Extension | Rescued a captive Derelict 18429 | -6/Extension | Rescued a captive Derelict 18430 | -6/Extension | Rescued a captive Derelict 18446 | -6/Extension | Rescued A7 18501 | -6/Extension | Discovered new exit (range 10) 18502 | -6/Extension | Discovered new exit (range 6) 18559 | -6/Extension | Entered Cetus 18559 | -6/Cetus | Accompanied by 15 allies (A7) 18564 | -6/Cetus | Acquired a Cetus Manufacturing Module code from A7 18582 | -6/Cetus | Spotted Cetus Guard 18582 | -6/Cetus | Spotted Cetus Guard 18583 | -6/Cetus | Spotted Cetus Guard 18584 | -6/Cetus | Spotted Cetus Guard 18587 | -6/Cetus | Allies destroyed Cetus Guard 18596 | -6/Cetus | Allies destroyed Cetus Guard 18600 | -6/Cetus | Allies destroyed Cetus Guard 18600 | -6/Cetus | Allies destroyed Cetus Guard 18687 | -6/Cetus | Started Cetus Manufacturing Module 18712 | -6/Cetus | Manufactured an Enhanced Grunt 18737 | -6/Cetus | Manufactured an Enhanced Grunt 18762 | -6/Cetus | Manufactured an Enhanced Grunt 18765 | -6/Cetus | Discovered new exit (range 16) 18787 | -6/Cetus | Manufactured an Enhanced Grunt 18803 | -6/Cetus | Spotted Cetus Guard 18803 | -6/Cetus | Spotted Cetus Guard 18806 | -6/Cetus | Spotted Cetus Guard 18809 | -6/Cetus | Spotted Cetus Guard 18812 | -6/Cetus | Manufactured an Enhanced Grunt 18816 | -6/Cetus | Destroyed Cetus Guard 18818 | -6/Cetus | Allies destroyed Cetus Guard 18819 | -6/Cetus | Destroyed Cetus Guard 18819 | -6/Cetus | Allies destroyed Cetus Guard 18823 | -6/Cetus | Discovered new exit (range 15) 18840 | -6/Cetus | Met Revision 17 18918 | -6/Cetus | Build established: Scavenger-Mutant 18953 | -6/Cetus | Destroyed A7 18954 | -6/Cetus | Extracted ID and sensor layout for unrecognized location from A7's data core 18959 | -6/Cetus | Entered Archives 18959 | -6/Archives | Accompanied by 3 allies 19077 | -6/Archives | Discovered new exit (range 13) 19140 | -6/Archives | Discovered new exit (range 15) 19247 | -6/Archives | Discovered new exit (range 15) 19568 | -6/Archives | Build established: Hauler-Mutant 19797 | -6/Archives | Entered Hub_04(d) 19826 | -6/Hub_04(d) | Discovered new exit (range 10) 20204 | -6/Hub_04(d) | Build established: Scavenger-Gunner 20217 | -6/Hub_04(d) | Discovered new exit (range 9) 20268 | -6/Hub_04(d) | Network Hub disabled 20285 | -6/Hub_04(d) | Network Hub disabled 20329 | -6/Hub_04(d) | Spotted Lightning 20332 | -6/Hub_04(d) | Spotted Lightning 20333 | -6/Hub_04(d) | Spotted Lightning 20334 | -6/Hub_04(d) | Destroyed 7 combat bots 20347 | -6/Hub_04(d) | Destroyed Lightning 20377 | -6/Hub_04(d) | Destroyed Lightning 20393 | -6/Hub_04(d) | Destroyed Lightning 20417 | -6/Hub_04(d) | Found Prototype Device 20417 | -6/Hub_04(d) | Identified EM Dispersion Field 20421 | -6/Hub_04(d) | Found Prototype Device 20421 | -6/Hub_04(d) | Identified Exp. Phase Shifter 20432 | -6/Hub_04(d) | Found EM Dispersion Field 20438 | -6/Hub_04(d) | Found Exp. Targeting Computer 20450 | -6/Hub_04(d) | Found Prototype Energy Cannon 20453 | -6/Hub_04(d) | Found Prototype Energy Cannon 20458 | -6/Hub_04(d) | Entered Factory 20458 | -5/Factory | Evolved 2 slots: Propulsion x1, Utility x1 20459 | -5/Factory | Identified exit to Upper Caves 20616 | -5/Factory | Garrison activated, responded to threat 20618 | -5/Factory | Identified EMDS (x2) 20674 | -5/Factory | Destroyed 8 combat bots 20758 | -5/Factory | First assault squad dispatched 20764 | -5/Factory | Fabricated Exp. Sensor Array (x1) 20766 | -5/Factory | Build established: Hauler-Tank 20811 | -5/Factory | Destroyed 8 combat bots 21277 | -5/Factory | Entered Upper Caves 21342 | -5/Upper Caves | Identified exit to Upper Caves 21396 | -5/Upper Caves | Build established: Scavenger-Mutant 21588 | -5/Upper Caves | Learned Factory security intel 21588 | -5/Upper Caves | Learned Research security intel 21588 | -5/Upper Caves | Learned Extension security intel 21588 | -5/Upper Caves | Learned Factory terminal intel 21588 | -5/Upper Caves | Learned Factory garrison access intel 22047 | -5/Upper Caves | Entered another Upper Caves area 22074 | -5/Upper Caves | Discovered new exit (range 3) 22114 | -5/Upper Caves | Identified exit to Factory 22139 | -5/Upper Caves | Spotted B-75 Beast 22516 | -5/Upper Caves | Build established: Scavenger-Skirmisher 22741 | -5/Upper Caves | Attracted the attention of an 0b10 checkpoint 22822 | -5/Upper Caves | Discovered new exit (range 9) 22837 | -5/Upper Caves | Identified exit to Warlord 22890 | -5/Upper Caves | Learned Factory terminal intel 22951 | -5/Upper Caves | Entered Warlord 22990 | -5/Warlord | Build established: Scavenger-Mutant 23003 | -5/Warlord | System corruption cleaned by Quarantine Array 23456 | -5/Warlord | Received a Watcher feed algorithm from an ecstatic Tinkerer 23497 | -5/Warlord | Met Warlord 23512 | -5/Warlord | Opened Warlord's prototype stash 23518 | -5/Warlord | Found Prototype Reactor 23522 | -5/Warlord | Warlord's base attacked by MAIN.C 23526 | -5/Warlord | Found Exp. Targeting Computer 23536 | -5/Warlord | Found Prototype Hackware 23841 | -5/Warlord | Found Prototype Ballistic Cannon 23872 | -5/Warlord | Warlord forces counterattacked 23969 | -5/Warlord | Opened side exit 24000 | -5/Warlord | Discovered new exit (range 11) 24027 | -5/Warlord | Spotted Striker 24065 | -5/Warlord | Identified exit to Proximity Caves 24067 | -5/Warlord | Identified Hvy. Autocannon 24093 | -5/Warlord | Entered Proximity Caves 24093 | -4/Proximity Caves | Accompanied by 1 ally 24511 | -4/Proximity Caves | Learned 4 Research zone layouts 24522 | -4/Proximity Caves | Central database locked down 24540 | -4/Proximity Caves | Discovered exit to Factory (range 7) 24551 | -4/Proximity Caves | Entered Factory 24551 | -4/Factory | Evolved 2 slots: Power x1, Utility x1 24553 | -4/Factory | Loaded intel: 20 terminal locations 24553 | -4/Factory | Identified Vortex Chain Reactor 24554 | -4/Factory | Loaded intel: 4 garrison access locations 24590 | -4/Factory | Found Prototype Processor 24669 | -4/Factory | Identified Ghost Barrier 24695 | -4/Factory | Identified exit to Upper Caves 24695 | -4/Factory | Identified exit to Armory 24740 | -4/Factory | Discovered new exit (range 15) 24789 | -4/Factory | Identified exit to Research 24878 | -4/Factory | Central database locked down 25352 | -4/Factory | Destroyed 7 combat bots 25442 | -4/Factory | Discovered exit to Research (range 9) 25551 | -4/Factory | First assault squad dispatched 25555 | -4/Factory | Identified Exp. Signal Interpreter 25618 | -4/Factory | Garrison activated, responded to threat 25663 | -4/Factory | Spotted B-86 Titan 25678 | -4/Factory | Entered Armory 25709 | -4/Armory | Build established: Hauler-Mutant 26177 | -4/Armory | Destroyed 7 combat bots 26178 | -4/Armory | First assault squad dispatched 26199 | -4/Armory | Fabricated Imp. Weapon Shielding (x2) 26600 | -4/Armory | Repaired Imp. Weapon Shielding 26693 | -4/Armory | Discovered new exit (range 4) 26696 | -4/Armory | Identified exit to Lab 26705 | -4/Armory | Entered Lab 26707 | -4/Lab | Discovered exit to Research (range 9) 26727 | -4/Lab | Hidden lab's door opened automatically 26727 | -4/Lab | Sensor layout match revealed 26728 | -4/Lab | Gained access to the hidden lab's interior 26791 | -4/Lab | Found Alien Artifact 26791 | -4/Lab | Identified Integrated Dissipator 26791 | -4/Lab | Installed Integrated Dissipator, increased core heat dissipation (+20) 26803 | -4/Lab | Found Alien Artifact 26803 | -4/Lab | Identified Core Expander 26803 | -4/Lab | Installed Core Expander, added new Power slot 26835 | -4/Lab | Found Prototype Device 26835 | -4/Lab | Identified AEGIS Remote Shield 26841 | -4/Lab | Found Prototype Energy Gun 26841 | -4/Lab | Identified Hyp. EM Gauss Rifle 26893 | -4/Lab | Found Alien Artifact 26948 | -4/Lab | Found Alien Artifact 27007 | -4/Lab | Found Prototype Special Weapon 27036 | -4/Lab | Found Hyp. EM Gauss Rifle 27056 | -4/Lab | Found Prototype Hackware 27126 | -4/Lab | Entered Research 27126 | -3/Research | Evolved 2 slots: Utility x2 27326 | -3/Research | Revision forces began assault on 0b10 27395 | -3/Research | Identified exit to Quarantine 27416 | -3/Research | Identified Transdimensional Reconstructor 27416 | -3/Research | Identified Core Reset Matrix 27416 | -3/Research | Identified Quantum Router 27416 | -3/Research | Identified Gui. Remote Datajack 27425 | -3/Research | Met up with Revision 17++ 27523 | -3/Research | Central database locked down 27616 | -3/Research | Build established: Generator-Mutant 27771 | -3/Research | Discovered new exit (range 7) 27781 | -3/Research | Identified exit to Research 27813 | -3/Research | Found Enh. Force Lance 27826 | -3/Research | Research terminal network offline 27878 | -3/Research | Spotted Striker 27893 | -3/Research | Entered Quarantine 28056 | -3/Quarantine | Found Alien Artifact 28056 | -3/Quarantine | Identified Subatomic Replicator 28171 | -3/Quarantine | Found Alien Artifact 28265 | -3/Quarantine | Found Alien Slashing Weapon 28265 | -3/Quarantine | Identified Sigix Broadsword 28595 | -3/Quarantine | Cryocooling Duct disabled 28610 | -3/Quarantine | Ambient heat levels rising (+20) 28610 | -3/Quarantine | Non-combat units ordered to evacuate 28747 | -3/Quarantine | Found Alien Impact Weapon 28855 | -3/Quarantine | Found Alien Artifact 28994 | -3/Quarantine | Identified Core Stripper 29020 | -3/Quarantine | Spotted Fortress 29036 | -3/Quarantine | Destroyed Fortress 29050 | -3/Quarantine | Found Exp. Force Field 29058 | -3/Quarantine | Found Vortex Chain Reactor 29175 | -3/Quarantine | Discovered new exit (range 6) 29182 | -3/Quarantine | Identified exit to Section 7 29185 | -3/Quarantine | Entered Section 7 29308 | -3/Section 7 | Identified Phase Redirector 29525 | -3/Section 7 | Found Alien Artifact 29649 | -3/Section 7 | Discovered exit to Research (range 16) 29699 | -3/Section 7 | Spotted S7 Guard 29737 | -3/Section 7 | Found Alien Artifact 29758 | -3/Section 7 | Destroyed S7 Guard 29777 | -3/Section 7 | Found Prototype Protection 29784 | -3/Section 7 | Identified Hvy. Regenerative Plating 30202 | -3/Section 7 | P-80 Master assimilated allied Director 8a 30435 | -3/Section 7 | First assault squad dispatched 30519 | -3/Section 7 | Found Integrated Dissipator 30520 | -3/Section 7 | Installed Integrated Dissipator, increased core heat dissipation (+20) 30666 | -3/Section 7 | Destroyed 11 combat bots 30686 | -3/Section 7 | Found Integrated Dissipator 30686 | -3/Section 7 | Installed Integrated Dissipator, increased core heat dissipation (+20) 30858 | -3/Section 7 | Found Quantum Capacitor 30946 | -3/Section 7 | Spotted Executioner 30946 | -3/Section 7 | Spotted Executioner 30955 | -3/Section 7 | Destroyed Executioner 30967 | -3/Section 7 | Destroyed Executioner 30999 | -3/Section 7 | Found Prototype Processor 31041 | -3/Section 7 | Found Transdimensional Reconstructor 31079 | -3/Section 7 | Found Alien Artifact 31197 | -3/Section 7 | Found Alien Energy Gun 31202 | -3/Section 7 | Found Alien Energy Gun 31204 | -3/Section 7 | Found Alien Energy Gun 31215 | -3/Section 7 | Build established: Scavenger-Mutant 31347 | -3/Section 7 | Spotted B-99 Colossus 31399 | -3/Section 7 | Found Core Expander 31399 | -3/Section 7 | Installed Core Expander, added new Utility slot 31451 | -3/Section 7 | Found Alien Artifact 31451 | -3/Section 7 | Identified LRC Matter Compressor 31451 | -3/Section 7 | Installed LRC Matter Compressor, increased matter storage capacity (+125) 31461 | -3/Section 7 | Found Alien Artifact 31461 | -3/Section 7 | Identified LRC Storage 31461 | -3/Section 7 | Installed LRC Storage, increased inventory capacity (+2) 31742 | -3/Section 7 | Build established: Hauler-Mutant 31755 | -3/Section 7 | Identified Sigix Quantum Sheargun (x3) 31802 | -3/Section 7 | Found Sigix Quantum Sheargun 31808 | -3/Section 7 | Found Sigix Quantum Sheargun 31936 | -3/Section 7 | Found Alien Artifact 32399 | -3/Section 7 | Spotted S7 Guard 32418 | -3/Section 7 | Destroyed S7 Guard 32442 | -3/Section 7 | Found Alien Artifact 32695 | -3/Section 7 | Found Alien Artifact 32711 | -3/Section 7 | Spotted S7 Guard 32727 | -3/Section 7 | Found Alien Artifact 32738 | -3/Section 7 | Build established: Scavenger-Mutant 32747 | -3/Section 7 | Destroyed S7 Guard 32889 | -3/Section 7 | Identified Core Regenerator 32892 | -3/Section 7 | Identified Integrity Redistributor 32892 | -3/Section 7 | Identified Integrated Reactor 32892 | -3/Section 7 | Identified Integrated Singularity Reactor 32892 | -3/Section 7 | Installed Integrated Singularity Reactor, increased core energy generation (+20) 32893 | -3/Section 7 | Installed Integrated Reactor, increased core energy generation (+10) 32894 | -3/Section 7 | Identified Core Membrane 32894 | -3/Section 7 | Installed Core Membrane, gained immunity to corruption 33075 | -3/Section 7 | Found Integrated Dissipator 33075 | -3/Section 7 | Installed Integrated Dissipator, increased core heat dissipation (+20) 33135 | -3/Section 7 | Entered Research 33135 | -2/Research | Warlord forces began assault on 0b10 33135 | -2/Research | Evolved 2 slots: Utility x1, Weapon x1 33176 | -2/Research | Build established: Generator-Mutant 33245 | -2/Research | Research machine network offline 33256 | -2/Research | Found Quantum Capacitor 33347 | -2/Research | Met up with Warlord 33413 | -2/Research | Spotted Striker 33435 | -2/Research | Borebot progress halted 33447 | -2/Research | Borebot progress halted 33463 | -2/Research | Borebot progress halted 33501 | -2/Research | Discovered new exit (range 13) 33514 | -2/Research | Identified exit to Testing 33529 | -2/Research | Found Prototype Processor 33578 | -2/Research | Entered Testing 33682 | -2/Testing | Found Prototype Energy Cannon 33682 | -2/Testing | Identified Cld. Nova Cannon 33869 | -2/Testing | Found Exp. Thermal Shield 33918 | -2/Testing | Identified Exp. Melee Analysis Suite 33918 | -2/Testing | Identified Terrabomb 33918 | -2/Testing | Identified Matter Drive 33918 | -2/Testing | Identified Stasis Generator 33952 | -2/Testing | Fabricated Adv. Weapon Cycler (x2) 34076 | -2/Testing | Found Prototype Hackware 34222 | -2/Testing | Identified System Mapper 34578 | -2/Testing | First assault squad dispatched 34749 | -2/Testing | Discovered new exit (range 11) 34774 | -2/Testing | Identified exit to Access 34775 | -2/Testing | Entered Access 34775 | -1/Access | Evolved 1 slot: Utility x1 35355 | -1/Access | Identified exit to Surface 35599 | -1/Access | Spotted B-99 Colossus 35599 | -1/Access | Spotted B-99 Colossus 35609 | -1/Access | Discovered new exit (range 3) 35610 | -1/Access | Identified exit to Command 35612 | -1/Access | Entered Command 35854 | -1/Command | Disengaged cave seal 35854 | -1/Command | Derelicts emerged from the dark tunnel 35854 | -1/Command | Welcomed Warlord to Command 35982 | -1/Command | Warlord commented on Warlord statues 35987 | -1/Command | Spotted M Guard 35987 | -1/Command | Spotted M Guard 35987 | -1/Command | Spotted Combat Programmer 35994 | -1/Command | Spotted Combat Programmer 35996 | -1/Command | Destroyed M Guard 36005 | -1/Command | Destroyed M Guard 36010 | -1/Command | Destroyed Combat Programmer 36010 | -1/Command | All MAIN.C guards destroyed 36060 | -1/Command | Found AEGIS Remote Shield 36065 | -1/Command | Found Prototype Reactor 36266 | -1/Command | Met MAIN.C 36268 | -1/Command | Warlord shut down involuntarily 36277 | -1/Command | 0b10 Conduit disabled 36297 | -1/Command | Destroyed MAIN.C Shell 36299 | -1/Command | MAIN.C activated Command garrisons 36332 | -1/Command | Destroyed MAIN.C 36359 | -1/Command | Found Prototype Reactor 36359 | -1/Command | Identified Zero-point Reactor (x2) 36390 | -1/Command | Found Prototype Protection 36390 | -1/Command | Identified Exp. Powered Armor 36393 | -1/Command | Found Exp. Powered Armor 36398 | -1/Command | Found Zero-point Reactor 36403 | -1/Command | Found Prototype Device 36406 | -1/Command | Found Prototype Processor 36533 | -1/Command | Identified Beam Splitter 36745 | -1/Command | Attacked by Warlord forces 36849 | -1/Command | Build established: Scavenger-Mutant 36988 | -1/Command | Found Prototype Ballistic Cannon 36988 | -1/Command | Identified Blast Cannon 37032 | -1/Command | Spotted B-99 Colossus 37053 | -1/Command | Destroyed B-99 Colossus 37300 | -1/Command | Found Prototype Ballistic Cannon 37300 | -1/Command | Identified Omega Cannon 37318 | -1/Command | Found Zero-point Reactor 37331 | -1/Command | Found Prototype Device 37331 | -1/Command | Identified Exp. Transmission Jammer 37336 | -1/Command | Found Prototype Device 37336 | -1/Command | Identified Exp. Hardlight Generator 38180 | -1/Command | Found Prototype Processor 38226 | -1/Command | Identified Exp. Target Analyzer 38228 | -1/Command | Identified Exp. Core Analyzer 38259 | -1/Command | Found Exp. Core Analyzer 38275 | -1/Command | Found Prototype Device 38275 | -1/Command | Identified Adv. Kinecellerator 38480 | -1/Command | Phase Generator disabled 38518 | -1/Command | Found Enh. Gamma Bomb Array 39906 | -1/Command | Found Exp. Phase Shifter 39908 | -1/Command | Found Vortex Chain Reactor 40371 | -1/Command | Warped through subspace to slip node 40371 | -1/Command | Discovered new exit (range 4) 40393 | -1/Command | Entered Access_0 40395 | -1/Access_0 | Met Architect 40399 | -1/Access_0 | Architect warped through subspace 40422 | -1/Access_0 | Destroyed A8 40424 | -1/Access_0 | Used Core Regenerator, restored core integrity (+316) 40462 | -1/Access_0 | Architect warped through subspace 40517 | -1/Access_0 | Architect warped through subspace 40566 | -1/Access_0 | Architect warped through subspace 40609 | -1/Access_0 | Architect warped through subspace 40663 | -1/Access_0 | Architect warped through subspace 40666 | -1/Access_0 | Found Exp. Powered Armor 40670 | -1/Access_0 | Found Exp. Powered Armor 40703 | -1/Access_0 | Architect warped through subspace 40708 | -1/Access_0 | Found Prototype Protection 40710 | -1/Access_0 | Identified Centrium Linked Plating 40711 | -1/Access_0 | Subspace Access Node disabled 40746 | -1/Access_0 | Architect warped through subspace 40778 | -1/Access_0 | Architect warped through subspace 40818 | -1/Access_0 | A6 warped into view 40837 | -1/Access_0 | Destroyed A6 40844 | -1/Access_0 | Architect warped through subspace 40871 | -1/Access_0 | Architect warped through subspace 40888 | -1/Access_0 | Found Prototype Device 40888 | -1/Access_0 | Identified Desublimator 40889 | -1/Access_0 | Destroyed 8 combat bots 40893 | -1/Access_0 | Architect warped through subspace 40920 | -1/Access_0 | Build established: Generator-Mutant 40934 | -1/Access_0 | Architect warped through subspace 40965 | -1/Access_0 | Architect warped through subspace 40985 | -1/Access_0 | Architect warped through subspace 41014 | -1/Access_0 | Architect warped through subspace 41078 | -1/Access_0 | Architect warped through subspace 41086 | -1/Access_0 | Used Integrity Redistributor, redistributed integrity from core (-440) 41087 | -1/Access_0 | Core integrity fell below 50% 41105 | -1/Access_0 | Architect warped through subspace 41139 | -1/Access_0 | Architect warped through subspace 41141 | -1/Access_0 | Used Terrabomb 41145 | -1/Access_0 | Subspace Access Node disabled 41148 | -1/Access_0 | Used Subatomic Replicator to replicate Blast Cannon 41163 | -1/Access_0 | Architect warped through subspace 41186 | -1/Access_0 | Architect warped through subspace 41211 | -1/Access_0 | Architect warped through subspace 41236 | -1/Access_0 | Architect warped through subspace 41259 | -1/Access_0 | Architect warped through subspace 41294 | -1/Access_0 | Architect warped through subspace 41300 | -1/Access_0 | A5 warped into view 41317 | -1/Access_0 | Architect warped through subspace 41340 | -1/Access_0 | Architect warped through subspace 41363 | -1/Access_0 | Architect warped through subspace 41385 | -1/Access_0 | Architect warped through subspace 41408 | -1/Access_0 | Architect warped through subspace 41444 | -1/Access_0 | Architect warped through subspace 41463 | -1/Access_0 | Architect warped through subspace 41472 | -1/Access_0 | Destroyed A5 41489 | -1/Access_0 | Architect warped through subspace 41513 | -1/Access_0 | Architect warped through subspace 41514 | -1/Access_0 | Subspace Access Node disabled 41536 | -1/Access_0 | Architect warped through subspace 41564 | -1/Access_0 | Architect warped through subspace 41587 | -1/Access_0 | Architect warped through subspace 41592 | -1/Access_0 | Found Exp. Phase Shifter 41597 | -1/Access_0 | Found Desublimator 41602 | -1/Access_0 | Found Exp. Targeting Computer 41611 | -1/Access_0 | Architect warped through subspace 41614 | -1/Access_0 | Found Exp. Phase Shifter 41620 | -1/Access_0 | Found Desublimator 41629 | -1/Access_0 | Architect warped through subspace 41655 | -1/Access_0 | Architect warped through subspace 41671 | -1/Access_0 | Architect warped through subspace 41684 | -1/Access_0 | Architect warped through subspace 41709 | -1/Access_0 | Architect warped through subspace 41727 | -1/Access_0 | Architect warped through subspace 41753 | -1/Access_0 | Architect warped through subspace 41778 | -1/Access_0 | Architect warped through subspace 41798 | -1/Access_0 | Architect warped through subspace 41814 | -1/Access_0 | Architect warped through subspace 41822 | -1/Access_0 | Build established: Scavenger-Gunner 41831 | -1/Access_0 | Architect warped through subspace 41842 | -1/Access_0 | Architect warped through subspace 41853 | -1/Access_0 | Architect warped through subspace 41868 | -1/Access_0 | Architect warped through subspace 41883 | -1/Access_0 | Architect warped through subspace 41894 | -1/Access_0 | Architect warped through subspace 41902 | -1/Access_0 | Architect warped through subspace 41907 | -1/Access_0 | Subspace Access Node disabled 41984 | -1/Access_0 | Found Centrium Linked Plating 41989 | -1/Access_0 | Found Centrium Linked Plating 42204 | -1/Access_0 | Build established: Scavenger-Mutant 42381 | -1/Access_0 | A4 warped into view 42394 | -1/Access_0 | Destroyed A4 42626 | -1/Access_0 | Destroyed A2 42653 | -1/Access_0 | Extracted Singularity Gate Test 138-C access codes from A2's data core 42761 | -1/Access_0 | Singularity Gate disabled 42778 | -1/Access_0 | Singularity Gate disabled 43186 | -1/Access_0 | A3 warped into view 43199 | -1/Access_0 | Destroyed A3 43228 | -1/Access_0 | Destroyed Architect 43408 | -1/Access_0 | Found Alien Artifact 43412 | -1/Access_0 | Identified Hpw. Transdimensional Reconstructor 43412 | -1/Access_0 | Warped through subspace to slip node 43412 | -1/Access_0 | Discovered exit to Surface (range 8) 43424 | *** | Establishing 0b11! Last Messages --------------- 43206_ Ended siege mode. 43221_ Blast Slug penetrates Architect. 43225_ Destroyed Prototype Device. 43227_ Blast Slug penetrates Architect. 43228_ Quantum Shear penetrates Wall. 43228_ Blast Slug penetrates Architect. 43228_ Architect: "Defeated by a malfunctioning replica of a piece of alien starship?! You've got*fzzt* be kiddi*bzzz*" 43228_ Architect destroyed. 43245_ Acquired Blast Cannon. 43250_ Dropped Antimatter Reactor. 43250_ Acquired Prototype Reactor. 43250_ Identified Graviton Reactor. 43269_ Dropped Exp. Coolant Injector. 43290_ Acquired Exp. Matter Compressor. 43406_ Dropped Exp. Hardlight Generator. 43408_ Acquired Alien Artifact. 43412_ Identified Hpw. Transdimensional Reconstructor. 43412_ Warped through subspace, drawn to slip node. 43412_ EXIT=FOUND: SURFACE Map ----- +----------------------------------------------------+ | | | | | | | | | | | | | | | | | | | | | | | | | | | | | | | | | ?????????????????????????????????????????????????? | | ?????????????????????????????????????????????????? | | ?????????????????????????????????????????????????? | | ?????????????????????????????????????????????????? | | ?????????????????????????????????????????????????? | | ?????????????????????????????????????????????????? | | ????????????????????????###??????????????????????? | | ???????????????????????## ##?????????????????????? | | ???????????????????????# #?????????????????????? | | ???????????????????????# @ #?????????????????????? | | ??????????????????????## #?????????????????????? | | ??????????????????????# #?????????????????????? | | ??????????????????????# ##?????????????????????? | | ??????????????????????## #?????????????????????? | | ??????????????????????# #?????????????????????? | | ??????????????????????# ##?????????????????????? | | ??????????????????????# < #?????????????????????? | | ??????????????????????# ##?????????????????????? | | ??????????????????????## #??????????????????????? | | ???????????????????????####??????????????????????? | | ?????????????????????????????????????????????????? | | ?????????????????????????????????????????????????? | | ?????????????????????????????????????????????????? | | ?????????????????????????????????????????????????? | | ?????????????????????????????????????????????????? | | ?????????????????????????????????????????????????? | | ?????????????????????????????????????????????????? | | ?????????????????????????????????????????????????? | | ?????????????????????????????????????????????????? | | ?????????????????????????????????????????????????? | | ?????????????????????????????????????????????????? | | ?????????????????????????????????????????????????? | | ?????????????????????????????????????????????????? | | ?????????????????????????????????????????????????? | +----------------------------------------------------+ Best States ------------- Heat Dissipation 170 Coolant Potential 120 Energy Generation 119 Energy Capacity 1450 Matter Stores 925 Matter Capacity 925 Sight Range 23 Robot Scan Range 30 Terrain Scan Range 16 Terrain Scan Density 60 Power Amplification 30 Additional Mass Support 20 Armor Coverage 4600 Resistance: KI 20 Resistance: TH 75 Resistance: EX 90 Resistance: EM 90 Weapon Shielding 66 Weapon Cycling 25 Phase Shifting 20 Evasion (%) 60 Targeting Accuracy 24 Launcher Accuracy 40 Target Analysis 12 Core Analysis 10 Armor Integrity Analysis 66 Recoil Reduction 4 Particle Charging 25 Kinecelleration 50 Salvage Targeting 3 Offensive Hacking 34 Defensive Hacking 35 Item Schematics ----------------- Imp. Weapon Shielding | -8/Materials | Hacked Combat Drone Bay | -7/Data Miner | Free Lgt. Regenerative Plating | -7/Data Miner | Free Exp. Sensor Array | -7/Data Miner | Free Exp. Terrain Scan Processor | -7/Data Miner | Free Exp. Targeting Computer | -7/Data Miner | Free Tactical Coordination Suite | -7/Data Miner | Free Exp. ECM Suite | -7/Data Miner | Free Cloaking Device | -7/Data Miner | Free Hvy. Neutron Cannon | -4/Factory | Hacked Adv. Launcher Guidance Computer | -4/Factory | Hacked Adv. Weapon Cycler | -3/Research | Scanalyzed Adv. Heavy Siege Treads | -3/Quarantine | Hacked Enh. Nova Cannon | -3/Section 7 | Hacked Adv. Component Analysis Suite | -3/Section 7 | Hacked Cld. Linear Gravjet | -1/Access | Hacked Biometal Heavy Treads | -1/Access | Hacked Robot Schematics ------------------ M-13 Machinist | -10/Materials | Hacked O-16 Technician | -10/Materials | Hacked S-27 Virus | -7/Data Miner | Free G-50 Soldier | -7/Data Miner | Free L-41 Fighter | -7/Data Miner | Free P-70 Sage | -7/Data Miner | Free I-36 Angel | -7/Data Miner | Free L-61 Swordsman | -3/Quarantine | Hacked Fabricated ------------ Imp. Weapon Shielding | x2 | -7/Factory Exp. Sensor Array | x1 | -5/Factory Imp. Weapon Shielding | x2 | -4/Armory Adv. Weapon Cycler | x2 | -2/Testing Alien Tech Used ----------------- Integrated Dissipator Core Expander Subatomic Replicator Sigix Broadsword Core Stripper Phase Redirector LRC Matter Compressor LRC Storage Sigix Quantum Sheargun Integrated Singularity Reactor Integrated Reactor Core Membrane Matter Drive Transdimensional Reconstructor Core Regenerator Integrity Redistributor Terrabomb High-powered Transdimensional Reconstructor Achievements -------------- None Challenges ------------ None Game ------ Seed TitaniumArmorCanceller Manual? 0 Play Time 06:17:29 Cumulative 1680.5 hours Start 2020.10.11 @ 16:27:15 End 2020.10.12 @ 03:15:00 Sessions 9 Manual Loads 0 Difficulty Rogue Special Mode None Game No. 2485 Rogue 2478 Adventurer 0 Explorer 7 Win Type 1 Total 159 Types 41/23/61/3/3/5/20/2/1 Lore% 99 Gallery% 99 Achievement% 100 Wizard Run 0 Options --------- ASCII 0 Keyboard 1 Movement Numpad Keybinds 1 Fullscreen 1 Font 18/SmallcapsGlow Map View 76x50 Tactical HUD 1 Map Filters NONE Filters NONE Steam 1 RUN: afcb1972-0c37-4a05-a51c-969948d7f51c